Workbook

Sheet Upload Format
A1: Format for Upload | G1: mailto:tushar.bhattacharyya@iprsltd.com | P1: 00055138194
A2: works Information | P2: Composer | Y2: 1st Non-Member | AJ2: 2nd Composer (as applicable) | AS2: 2nd Non-Member | BD2: 3rd Composer (as applicable) | BM2: 3rd Non-Member | BX2: 4th Composer (as applicable) | CG2: 4th Non-Member | CR2: 5th Composer (as applicable) | DA2: 5th Non-Member | DL2: Author | DU2: 1st Non-Member | EF2: 2nd Author | EO2: 2nd Non-Member | EZ2: 3rd Author | FI2: 3rd Non-Member | FT2: 4th Author | GC2: 4th Non-Member | GN2: 5th Author | GW2: 5th Non-Member | HH2: PUBLISHER | HQ2: Publisher Non-Member | IC2: SUB-PUBLISHER | IL2: 2019-10-31 | IO2: User
A3: SRL | B3: ISRC | C3: ISWC - BY THE SOCIETY | D3: SONG TITLE | E3: LANGUAGE | F3: TITLE SUB LANGUAGE | G3: DURATION (HH:MM:SS) | H3: WORK SUB CATEGORY | I3: WORK TYPE (VOCAL / INSTRUMENTAL) | J3: RELEASE YEAR | K3: VERSION (IF MODIFIED) | L3: MODIFIED VERSION CATEGORY | M3: SINGER / PERFORMER | N3: DSP ASSET ID | O3: VALIDATION LINK | P3: COMPOSER IPI NO (MEMBERS) | Q3: COMPOSER FIRST NAME | R3: COMPOSER LAST NAME | S3: PER_SOC - 099 FOR NON-MEMBER / 036 FOR IPRS MEMBER | T3: MEC_SOC - LEAVE IT BLANK | U3: CAE (COMPOSER / AUTHOR / PUBLISHER) | V3: PER SHARE | W3: MEC_SHARE | X3: SHARE (%) | Y3: Pseudo Name | Z3: Group / Band | AA3: DOB | AB3: Address | AF3: Contact (Mobile) | AG3: Contact (Email) | AH3: Aadhaar | AI3: PAN | AJ3: COMPOSER IPI NO (MEMBERS) | AK3: COMPOSER FIRST NAME | AL3: COMPOSER LAST NAME | AM3: PER_SOC - 099 FOR NON-MEMBER / 036 FOR IPRS MEMBER | AN3: MEC_SOC - LEAVE IT BLANK | AO3: CAE (COMPOSER / AUTHOR / PUBLISHER) | AP3: PER SHARE | AQ3: MEC_SHARE | AR3: SHARE (%) | AS3: Pseudo Name | AT3: Group / Band | AU3: DOB | AV3: Address | AW3: PIN | AX3: TYPE | AZ3: Contact (Mobile) | BA3: Contact (Email) | BB3: Aadhaar | BC3: PAN | BD3: COMPOSER IPI NO (MEMBERS) | BE3: COMPOSER FIRST NAME | BF3: COMPOSER LAST NAME | BG3: PER_SOC - 099 FOR NON-MEMBER / 036 FOR IPRS MEMBER | BH3: MEC_SOC - LEAVE IT BLANK | BI3: CAE (COMPOSER / AUTHOR / PUBLISHER) | BJ3: PER SHARE | BK3: MEC_SHARE | BL3: SYNC_SHARE | BM3: Pseudo Name | BN3: Group / Band | BO3: DOB | BP3: Address | BQ3: PIN | BR3: TYPE | BT3: Contact (Mobile) | BU3: Contact (Email) | BV3: Aadhaar | BW3: PAN | BX3: COMPOSER IPI NO (MEMBERS) | BY3: COMPOSER FIRST NAME | BZ3: COMPOSER LAST NAME | CA3: PER_SOC - 099 FOR NON-MEMBER / 036 FOR IPRS MEMBER | CB3: MEC_SOC - LEAVE IT BLANK | CC3: CAE (COMPOSER / AUTHOR / PUBLISHER) | CD3: PER SHARE | CE3: MEC_SHARE | CF3: SYNC_SHARE | CG3: Pseudo Name | CH3: Group / Band | CI3: DOB | CJ3: Address | CK3: PIN | CL3: TYPE | CN3: Contact (Mobile) | CO3: Contact (Email) | CP3: Aadhaar | CQ3: PAN | CR3: COMPOSER IPI NO (MEMBERS) | CS3: COMPOSER FIRST NAME | CT3: COMPOSER LAST NAME | CU3: PER_SOC - 099 FOR NON-MEMBER / 036 FOR IPRS MEMBER | CV3: MEC_SOC - LEAVE IT BLANK | CW3: CAE (COMPOSER / AUTHOR / PUBLISHER) | CX3: PER SHARE | CY3: MEC_SHARE | CZ3: SYNC_SHARE | DA3: Pseudo Name | DB3: Group / Band | DC3: DOB | DD3: Address | DE3: PIN | DF3: TYPE | DH3: Contact (Mobile) | DI3: Contact (Email) | DJ3: Aadhaar | DK3: PAN | DL3: AUTHOR IPI NO (MEMBERS) | DM3: AUTHOR FIRST NAME | DN3: AUTHOR LAST NAME | DO3: PER_SOC - 099 FOR NON-MEMBER / 036 FOR IPRS MEMBER | DP3: MEC_SOC - LEAVE IT BLANK | DQ3: CAE (COMPOSER / AUTHOR / PUBLISHER) | DR3: PER SHARE | DS3: MEC_SHARE | DT3: SYNC_SHARE | DU3: Pseudo Name | DV3: Group / Band | DW3: DOB | DX3: Address | DY3: PIN | DZ3: TYPE | EB3: Contact (Mobile) | EC3: Contact (Email) | ED3: Aadhaar | EE3: PAN | EF3: AUTHOR IPI NO (MEMBERS) | EG3: AUTHOR FIRST NAME | EH3: AUTHOR LAST NAME | EI3: PER_SOC - 099 FOR NON-MEMBER / 036 FOR IPRS MEMBER | EJ3: MEC_SOC - LEAVE IT BLANK | EK3: CAE (COMPOSER / AUTHOR / PUBLISHER) | EL3: PER SHARE | EM3: MEC_SHARE | EN3: SYNC_SHARE | EO3: Pseudo Name | EP3: Group / Band | EQ3: DOB | ER3: Address | ES3: PIN | ET3: TYPE | EV3: Contact (Mobile) | EW3: Contact (Email) | EX3: Aadhaar | EY3: PAN | EZ3: AUTHOR IPI NO (MEMBERS) | FA3: AUTHOR FIRST NAME | FB3: AUTHOR LAST NAME | FC3: PER_SOC - 099 FOR NON-MEMBER / 036 FOR IPRS MEMBER | FD3: MEC_SOC - LEAVE IT BLANK | FE3: CAE (COMPOSER / AUTHOR / PUBLISHER) | FF3: PER SHARE | FG3: MEC_SHARE | FH3: SYNC_SHARE | FI3: Pseudo Name | FJ3: Group / Band | FK3: DOB | FL3: Address | FM3: PIN | FN3: TYPE | FP3: Contact (Mobile) | FQ3: Contact (Email) | FR3: Aadhaar | FS3: PAN | FT3: AUTHOR IPI NO (MEMBERS) | FU3: AUTHOR FIRST NAME | FV3: AUTHOR LAST NAME | FW3: PER_SOC - 099 FOR NON-MEMBER / 036 FOR IPRS MEMBER | FX3: MEC_SOC - LEAVE IT BLANK | FY3: CAE (COMPOSER / AUTHOR / PUBLISHER) | FZ3: PER SHARE | GA3: MEC_SHARE | GB3: SYNC_SHARE | GC3: Pseudo Name | GD3: Group / Band | GE3: DOB | GF3: Address | GG3: PIN | GH3: TYPE | GJ3: Contact (Mobile) | GK3: Contact (Email) | GL3: Aadhaar | GM3: PAN | GN3: AUTHOR IPI NO (MEMBERS) | GO3: AUTHOR FIRST NAME | GP3: AUTHOR LAST NAME | GQ3: PER_SOC - 099 FOR NON-MEMBER / 036 FOR IPRS MEMBER | GR3: MEC_SOC - LEAVE IT BLANK | GS3: CAE (COMPOSER / AUTHOR / PUBLISHER) | GT3: PER SHARE | GU3: MEC_SHARE | GV3: SYNC_SHARE | GW3: Pseudo Name | GX3: Group / Band | GY3: DOB | GZ3: Address | HA3: PIN | HB3: TYPE | HD3: Contact (Mobile) | HE3: Contact (Email) | HF3: Aadhaar | HG3: PAN | HH3: PUBLISHER IPI_NO (MEMBERS) | HI3: PUBLISHER FIRST NAME | HJ3: PUBLISHER LAST NAME | HK3: PER_SOC - 099 FOR NON-MEMBER / 036 FOR IPRS MEMBER | HL3: MEC_SOC - LEAVE IT BLANK | HM3: CAE (COMPOSER / AUTHOR / PUBLISHER) | HN3: PER SHARE | HO3: MEC_SHARE | HP3: SYNC_SHARE | HQ3: Pseudo Name | HR3: Group / Band | HS3: DOB | HT3: Address | HU3: PIN | HV3: TYPE | HX3: Contact (Mobile) | HY3: Contact (Email) | HZ3: Aadhaar | IA3: PAN | IB3: PAN | IC3: IPI NO (MEMBER) | ID3: FIRST NAME (MEMBER) | IE3: LAST NAME (MEMBER) | IF3: PER_SOC - 099 FOR NON-MEMBER / 036 FOR IPRS MEMBER (36) | IG3: MEC_SOC - LEAVE IT BLANK | IH3: CAE (COMPOSER / AUTHOR / PUBLISHER) | II3: PER SHARE | IJ3: MEC_SHARE (40) | IK3: SYNC_SHARE (41) | IL3: INTENDED PURPOSE (FILM / NON-FILM) | IM3: PROD TITLE / FILM / NON-FILM NAME | IN3: ALTERNATIVE TITLE / OTHER TITLE OF SONG | IO3: User Name
A4: 1 | B4: 2 | C4: 3 | D4: 4 | E4: 5 | F4: 6 | G4: 7 | H4: 9 | I4: 10 | J4: 11 | K4: 12 | M4: 13 | N4: 14 | O4: 15 | P4: 16 | Q4: 17 | R4: 18 | S4: 19 | T4: 20 | U4: 21 | V4: 22 | W4: 23 | X4: 24 | Y4: 25 | Z4: 26 | AA4: 27 | AB4: 28 | AC4: 29 | AD4: 30 | AE4: 31 | AF4: 32 | AG4: 33 | AH4: 34 | AI4: 35 | AJ4: 36 | AK4: 37 | AL4: 38 | AM4: 39 | AN4: 40 | AO4: 41 | AP4: 42 | AQ4: 43 | AR4: 44 | AS4: 45 | AT4: 46 | AU4: 47 | AV4: 48 | AW4: 49 | AX4: 50 | AY4: 51 | AZ4: 52 | BA4: 53 | BB4: 54 | BC4: 55 | BD4: 56 | BE4: 57 | BF4: 58 | BG4: 59 | BH4: 60 | BI4: 61 | BJ4: 62 | BK4: 63 | BL4: 64 | BM4: 65 | BN4: 66 | BO4: 67 | BP4: 68 | BQ4: 69 | BR4: 70 | BS4: 71 | BT4: 72 | BU4: 73 | BV4: 74 | BW4: 75 | BX4: 76 | BY4: 77 | BZ4: 78 | CA4: 79 | CB4: 80 | CC4: 81 | CD4: 82 | CE4: 83 | CF4: 84 | CG4: 85 | CH4: 86 | CI4: 87 | CJ4: 88 | CK4: 89 | CL4: 90 | CM4: 91 | CN4: 92 | CO4: 93 | CP4: 94 | CQ4: 95 | CR4: 96 | CS4: 97 | CT4: 98 | CU4: 99 | CV4: 100 | CW4: 101 | CX4: 102 | CY4: 103 | CZ4: 104 | DA4: 105 | DB4: 106 | DC4: 107 | DD4: 108 | DE4: 109 | DF4: 110 | DG4: 111 | DH4: 112 | DI4: 113 | DJ4: 114 | DK4: 115 | DL4: 116 | DM4: 117 | DN4: 118 | DO4: 119 | DP4: 120 | DQ4: 121 | DR4: 122 | DS4: 123 | DT4: 124 | DU4: 125 | DV4: 126 | DW4: 127 | DX4: 128 | DY4: 129 | DZ4: 130 | EA4: 131 | EB4: 132 | EC4: 133 | ED4: 134 | EE4: 135 | EF4: 136 | EG4: 137 | EH4: 138 | EI4: 139 | EJ4: 140 | EK4: 141 | EL4: 142 | EM4: 143 | EN4: 144 | EO4: 145 | EP4: 146 | EQ4: 147 | ER4: 148 | ES4: 149 | ET4: 150 | EU4: 151 | EV4: 152 | EW4: 153 | EX4: 154 | EY4: 155 | EZ4: 156 | FA4: 157 | FB4: 158 | FC4: 159 | FD4: 160 | FE4: 161 | FF4: 162 | FG4: 163 | FH4: 164 | FI4: 165 | FJ4: 166 | FK4: 167 | FL4: 168 | FM4: 169 | FN4: 170 | FO4: 171 | FP4: 172 | FQ4: 173 | FR4: 174 | FS4: 175 | FT4: 176 | FU4: 177 | FV4: 178 | FW4: 179 | FX4: 180 | FY4: 181 | FZ4: 182 | GA4: 183 | GB4: 184 | GC4: 185 | GD4: 186 | GE4: 187 | GF4: 188 | GG4: 189 | GH4: 190 | GI4: 191 | GJ4: 192 | GK4: 193 | GL4: 194 | GM4: 195 | GN4: 196 | GO4: 197 | GP4: 198 | GQ4: 199 | GR4: 200 | GS4: 201 | GT4: 202 | GU4: 203 | GV4: 204 | GW4: 205 | GX4: 206 | GY4: 207 | GZ4: 208 | HA4: 209 | HB4: 210 | HC4: 211 | HD4: 212 | HE4: 213 | HF4: 214 | HG4: 215 | HH4: 216 | HI4: 217 | HJ4: 218 | HK4: 219 | HL4: 220 | HM4: 221 | HN4: 222 | HO4: 223 | HP4: 224 | HQ4: 225 | HR4: 226 | HS4: 227 | HT4: 228 | HU4: 229 | HV4: 230 | HW4: 231 | HX4: 232 | HY4: 233 | HZ4: 234 | IA4: 235 | IB4: 236 | IC4: 237 | ID4: 238 | IE4: 239 | IF4: 240 | IG4: 241 | IH4: 242 | II4: 243 | IJ4: 244 | IK4: 245 | IL4: 246 | IM4: 247 | IN4: 248 | IO4: 249
A5: 1… 6000 | B5: INH109990260 | C5: T9054225137 | D5: O MERE DIL KE CHAIN | E5: HINDI | G5: 0.002777777778 | H5: FEATURE | I5: VOCAL | J5: 1972 | M5: KISHORE KUMAR | N5: 1395491653 | O5: https://www.youtube.com/watch?v=STsCWx_DbOo | P5: 00055446867 | Q5: RAHUL DEV | R5: BURMAN | S5: 036 | V5: 25 | AP5: 25 | BJ5: 25 | CD5: 25 | CX5: 25 | DL5: 00055442585 | DM5: MAJROOH | DN5: SULTANPURI | DO5: 036 | DR5: 25 | EL5: 25 | FF5: 25 | FZ5: 25 | GT5: 25 | HH5: 00439385425 | HI5: SAREGAMA INDIA LTD | HK5: 036 | HN5: 50 | II5: 50 | IL5: FILM | IM5: MERE JEEVAN SAATHI
B6: Provided by the Publisher | C6: Generated by Society This should be left blank | D6: Song Title | E6: If there is no sublanguage leave the cell blank | G6: Duration of the work as per actuals | H6: Works are furhter sub catagorised as per the list provided . For 1) Films songs- Features.2) For film background - Background 3) For Non film or album song - popular. 4) For devotional - sacred music 5) For serial background - Background | I6: Identify Songs as Vocal or Instrumental. VOCAL / INSTRUMENTAL | J6: For Vocal use BOTH / For Instrumental use MUSIC / For Dialogue - Recitation use TEXT | K6: ORIGINAL for songs / MODIFIED for Modified work ( Remix/ Reprise / Adaptation etc) | M6: NAME OF SINGER If there is more than one singer add the names with commas between them ( , ). As many names as there are can be added | P6: Membership number | Q6: FIRST NAME OF COMPOSER If there is more than one Composer continue to next column set | R6: LAST NAME OF COMPOSER | S6: If Non Member Use Code 099 / if Member 036 | T6: X | U6: Use C for Composer | V6: 25: 25 to Composer & Author and if Instrumental / background then total 50 to Composer | BX6: Membership number If there is a second Composer insert / add a Column set to enter details.In this case the share distribution gets divided by 2 = 12.5 each so on and so for more than 2 the share is divided by that number | BY6: FIRST NAME OF Author | BZ6: LAST NAME OF Author | CA6: If Non Member Use Code 099 / if Member 036 | CB6: x | CC6: Use A for Author | CD6: 25: 25 to Author & Composer and if Instrumental / Background then total 50 to Composer | CR6: Membership number If there is a second Composer insert / add a Column set to enter details.In this case the share distribution gets divided by 2 = 12.5 each so on and so for more than 2 the share is divided by that number | CS6: FIRST NAME OF Author | CT6: LAST NAME OF Author | CU6: If Non Member Use Code 099 / if Member 036 | CV6: x | CW6: Use A for Author | CX6: 25: 25 to Author & Composer and if Instrumental / Background then total 50 to Composer | DL6: Membership number If there is a second Composer insert / add a Column set to enter details.In this case the share distribution gets divided by 2 = 12.5 each so on and so for more than 2 the share is divided by that number | DM6: FIRST NAME OF Author | DN6: LAST NAME OF Author | DO6: If Non Member Use Code 099 / if Member 036 | DP6: x | DQ6: Use A for Author | DR6: 25: 25 to Author & Composer and if Instrumental / Background then total 50 to Composer | EF6: Membership number If there is a second Composer insert / add a Column set to enter details.In this case the share distribution gets divided by 2 = 12.5 each so on and so for more than 2 the share is divided by that number | EG6: FIRST NAME OF Author | EH6: LAST NAME OF Author | EI6: If Non Member Use Code 099 / if Member 036 | EJ6: x | EK6: Use A for Author | EL6: 25: 25 to Author & Composer and if Instrumental / Background then total 50 to Composer | EZ6: Membership number If there is a second Composer insert / add a Column set to enter details.In this case the share distribution gets divided by 2 = 12.5 each so on and so for more than 2 the share is divided by that number | FA6: FIRST NAME OF Author | FB6: LAST NAME OF Author | FC6: If Non Member Use Code 099 / if Member 036 | FD6: x | FE6: Use A for Author | FF6: 25: 25 to Author & Composer and if Instrumental / Background then total 50 to Composer | FT6: Membership number If there is a second Composer insert / add a Column set to enter details.In this case the share distribution gets divided by 2 = 12.5 each so on and so for more than 2 the share is divided by that number | FU6: FIRST NAME OF Author | FV6: LAST NAME OF Author | FW6: If Non Member Use Code 099 / if Member 036 | FX6: x | FY6: Use A for Author | FZ6: 25: 25 to Author & Composer and if Instrumental / Background then total 50 to Composer | GN6: Membership number If there is a second Composer insert / add a Column set to enter details.In this case the share distribution gets divided by 2 = 12.5 each so on and so for more than 2 the share is divided by that number | GO6: FIRST NAME OF Author | GP6: LAST NAME OF Author | GQ6: If Non Member Use Code 099 / if Member 036 | GR6: x | GS6: Use A for Author | GT6: 25: 25 to Author & Composer and if Instrumental / Background then total 50 to Composer | HH6: Membership number | HI6: NAME OF PUBLISHER | HJ6: x | HK6: If Non Member Use Code 099 / if Member 036 | HL6: X | HM6: Use E for Publisher | HN6: Performance Share 50 | HO6: MechanicalShare 50 | HP6: Synchronisation Share 50 | IC6: Membership number | ID6: NAME OF PUBLISHER | IE6: x | IF6: If Non Member Use Code 099 / if Member 036 | IG6: X | IH6: Use E for Publisher | II6: Performance Share 50 | IJ6: MechanicalShare 50 | IK6: Synchronisation Share 50 | IL6: For Film Use Code F / for Non Film Use Code NF ( Includes Albums /Television / Web Series etc) | IM6: Name of Film / Album / TV Serial / Web Series | IN6: Alternative titles by which the song may also be referred as
A7: 1 | IO7: ()
A8: =A7+1 -> 2
A9: =A8+1 -> 3
A10: 4
A11: 5
A12: 6
A13: 7
A14: 8
A15: 9
A16: 10
A17: 11
A18: 12
A19: 13
A20: 14
A21: 15
A22: 16
A23: 17
A24: 18
A25: 19
A26: 20
A27: 21
A28: 22
A29: 23
A30: 24
A31: 25
A32: 26
A33: 27
A34: 28
A35: 29
A36: 30
A37: 31
A38: 32
A39: 33
A40: 34
A41: 35
A42: 36
A43: 37
A44: 38
A45: 39
A46: 40
A47: 41
A48: 42
A49: 43
A50: 44
A51: 45
A52: 46
A53: 47
A54: 48
A55: 49
A56: 50
A57: 51
A58: 52
A59: 53
A60: 54
A61: 55
A62: 56
A63: 57
A64: 58
A65: 59
A66: 60
A67: 61
A68: 62
A69: 63
A70: 64
A71: 65
A72: 66
A73: =A72+1 -> 67
A74: 68
A75: 69
A76: 70
A77: 71
A78: 72
A79: 73
A80: 74
A81: 75
A82: 76
A83: 77
A84: 78
A85: 79
A86: 80
A87: 81
A88: 82
A89: 83
A90: 84
A91: 85
A92: 86
A93: 87
A94: 88
A95: 89
A96: 90
A97: 91
A98: 92
A99: 93
A100: 94
A101: 95
A102: 96
A103: 97
A104: 98
A105: 99
A106: 100
A107: 101
A108: 102
A109: 103
A110: 104
A111: 105
A112: 106
A113: 107
A114: 108
A115: 109
A116: 110
A117: 111
A118: 112
A119: 113
A120: 114
A121: 115
A122: 116
A123: 117
A124: 118
A125: 119
A126: 120
A127: 121
A128: 122
A129: 123
A130: 124
A131: 125
A132: 126
A133: 127
A134: 128
A135: 129
A136: 130
A137: =A136+1 -> 131
A138: 132
A139: 133
A140: 134
A141: 135
A142: 136
A143: 137
A144: 138
A145: 139
A146: 140
A147: 141
A148: 142
A149: 143
A150: 144
A151: 145
A152: 146
A153: 147
A154: 148
A155: 149
A156: 150
A157: 151
A158: 152
A159: 153
A160: 154
A161: 155
A162: 156
A163: 157
A164: 158
A165: 159
A166: 160
A167: 161
A168: 162
A169: 163
A170: 164
A171: 165
A172: 166
A173: 167
A174: 168
A175: 169
A176: 170
A177: 171
A178: 172
A179: 173
A180: 174
A181: 175
A182: 176
A183: 177
A184: 178
A185: 179
A186: 180
A187: 181
A188: 182
A189: 183
A190: 184
A191: 185
A192: 186
A193: 187
A194: 188
A195: 189
A196: 190
A197: 191
A198: 192
A199: 193
A200: 194
... 2050 more rows

Sheet Report
A1: Data Validation Status

Sheet Import_Data (hidden)
A1: Composer Details
A2: Please Copy from your source Excel Sheet into below content (format) and then click on IMPORT Button
A4: Srl | B4: Song Title | C4: IPI | D4: First Name | E4: Last Name | F4: Society Code | G4: Active / Traditional | H4: Pseudo / Alias Name | I4: Group / Band / Duo / Trio Name | J4: DOB mm/dd/yyyy | K4: Aadhaar | L4: PAN | M4: Address | N4: PIN | O4: Mobile | P4: Email
K5: <<<<---- ----- -------- ------ ------ ----- Any One ---- ----- -------- ------ ------ ----->>>>
A6: 1
A7: 2
A8: 3
A9: 4
A10: 5
A11: 6
A12: 7
A13: 8
A14: 9
A15: 10
A16: 11
A17: 12
A18: 13
A19: 14
A20: 15
A21: 16
A22: 17
A23: 18
A24: 19
A25: 20
A26: 21
A27: 22
A28: 23
A29: 24
A30: 25
A31: 26
A32: 27
A33: 28
A34: 29
A35: 30
A36: 31
A37: 32
A38: 33
A39: 34
A40: 35
A41: 36
A42: 37
A43: 38
A44: 39
A45: 40
A46: 41
A47: 42
A48: 43
A49: 44
A50: 45
A51: 46
A52: 47
A53: 48
A54: 49
A55: 50
A56: 51
A57: 52
A58: 53
A59: 54
A60: 55
A61: 56
A62: 57
A63: 58
A64: 59
A65: 60
A66: 61
A67: 62
A68: 63
A69: 64
A70: 65
A71: 66
A72: 67
A73: 68
A74: 69
A75: 70
A76: 71
A77: 72
A78: 73
A79: 74
A80: 75
A81: 76
A82: 77
A83: 78
A84: 79
A85: 80
A86: 81
A87: 82
A88: 83
A89: 84
A90: 85
A91: 86
A92: 87
A93: 88
A94: 89
A95: 90
A96: 91
A97: 92
A98: 93
A99: 94
A100: 95
A101: 96
A102: 97
A103: 98
A104: 99
A105: 100
A106: 101
A107: 102
A108: 103
A109: 104
A110: 105
A111: 106
A112: 107
A113: 108
A114: 109
A115: 110
A116: 111
A117: 112
A118: 113
A119: 114
A120: 115
A121: 116
A122: 117
A123: 118
A124: 119
A125: 120
A126: 121
A127: 122
A128: 123
A129: 124
A130: 125
A131: 126
A132: 127
A133: 128
A134: 129
A135: 130
A136: 131
A137: 132
A138: 133
A139: 134
A140: 135
A141: 136
A142: 137
A143: 138
A144: 139
A145: 140
A146: 141
A147: 142
A148: 143
A149: 144
A150: 145
A151: 146
A152: 147
A153: 148
A154: 149
A155: 150
A156: 151
A157: 152
A158: 153
A159: 154
A160: 155
A161: 156
A162: 157
A163: 158
A164: 159
A165: 160
A166: 161
A167: 162
A168: 163
A169: 164
A170: 165
A171: 166
A172: 167
A173: 168
A174: 169
A175: 170
A176: 171
A177: 172
A178: 173
A179: 174
A180: 175
A181: 176
A182: 177
A183: 178
A184: 179
A185: 180
A186: 181
A187: 182
A188: 183
A189: 184
A190: 185
A191: 186
A192: 187
A193: 188
A194: 189
A195: 190
A196: 191
A197: 192
A198: 193
A199: 194
A200: 195
A201: 196
... 5804 more rows

Sheet Sheet2 (hidden)
A1: Member | B1: IPI | C1: Fname | D1: Mname | E1: Lname | F1: Role | G1: FILM | H1: NON-FILM | I1: TV/WEB-SERIES TRACK | J1: 2021-08-31 | L1: New | M1: Copy | N1: Import | O1: Composer | P1: IPI | Q1: Fname | R1: Mname | S1: Lname | T1: Role | W1: Author | X1: IPI | Y1: Fname | Z1: Mname | AA1: Lname | AB1: Role | AE1: Publisher | AF1: IPI | AG1: Fname | AH1: Mname | AI1: Lname | AJ1: Role | AN1: ISRC | AR1: AS | AS1: HINDI | AU1: BHOJPURI | AW1: MARWARI | AX1: GURMUKHI | AY1: AWADHI | BA1: AADIVASI | BC1: TULU | BI1: VERSION LIST | BL1: UNCLASSIFIED | BM1: Background Score | BT1: 72
B2: 00023652405 | C2: JOE | D2: JOE PAUL | E2: PAUL | F2: A | P2: 00023652405 | R2: 100RBH | X2: 00023652405 | Z2: 100RBH | AF2: 00042558877 | AH2: 1 MUSIC | AN2: IN L11 09 00064 | AO2: VEGAMAY ABHOGI TWO | AP2: M BALAMURALI KRISHNA | AR2: BN | AS2: ENGLISH | AW2: rajasthani | AY2: BANARASI | BA2: AHIRANI | BH2: Lyric Adaption | BI2: Added Lyric | BM2: Carnatic
B3: 00041230241 | C3: SAJID | D3: SAJID KHAN | E3: KHAN | F3: C | P3: 00041230241 | R3: 4 MUSICS | X3: 00041230241 | Z3: 4 MUSICS | AF3: 00051494779 | AH3: 21ST CENTURY PRODUCTION | AN3: IN L11 09 00977 | AO3: PAANSA KHELAT HAIN PIYA PYAARI TWO | AP3: SHUBHA MUDGAL | AR3: DZ | AS3: BENGALI(BANGLA) | AU3: bihari | AY3: BANJARA | BA3: KONKANI | BI3: Modified lyric | BM3: Christmas Choral
B4: 00041230241 | C4: SAJID | D4: SAJID | E4: KHAN | F4: C | P4: 00043596861 | R4: A A RAJ | X4: 00043596861 | Z4: A A RAJ | AF4: 00055138684 | AH4: 5911 RECORDS | AN4: IN L11 09 01444 | AO4: MERA MUJH MEIN KICH NAHI TWO | AP4: BHAI HARBANS SINGH | AR4: BH | AS4: ASSAMESE | AY4: BRIJBAS | BI4: No Lyric | BM4: Classical
B5: 00041230241 | C5: SAJID | D5: SAJID KHAN | E5: KHAN | F5: C | P5: 00055136592 | R5: A ANWAR ALI | X5: 00055136592 | Z5: A ANWAR ALI | AF5: 00055139583 | AH5: 5911 RECORDS PRIVATE LIMITED | AN5: IN L11 09 01444 | AO5: MERA MUJH MEIN KICH NAHI ONE | AP5: BHAI HARBANS SINGH | AR5: EN | AS5: BENGALI(BANGLA) | AY5: CHHATISGARH | BI5: Original Lyric | BM5: Closing Theme
B6: 00041230241 | C6: SAJID | D6: SAJID-WAJID | E6: KHAN | F6: C | P6: 00055136984 | R6: A BHEEMS | X6: 00055136984 | Z6: A BHEEMS | AF6: 00055147585 | AH6: 7 STAR ENTERTAINMENT | AN6: IN L11 09 01828 | AO6: DHANA PRAAPTYARTHAM MANTRAHA TWO | AP6: SURESH WADKAR | AR6: GU | AS6: BHOJPURI | AY6: KHASI | BI6: Replaced Lyric | BM6: Commercial Jingle
B7: 00042558877 | C7: GEETA MUSIC | D7: GEETA MUSIC | F7: E | P7: 00055137099 | R7: A C JOHN PETER | X7: 00055137099 | Z7: A C JOHN PETER | AF7: 00055151008 | AH7: 7 TRACK MUSIC | AN7: IN L11 09 02099 | AO7: SHRI SHIVA DHYANAM ONE | AP7: PANDIT JASRAJ | AR7: HI | AS7: BHUTANI | AY7: KHORTA | BI7: Translated lyric | BM7: Dance
B8: 00043596861 | C8: JERRY | D8: JERRY AMALDEV | E8: AMALDEV | F8: C | P8: 00055137687 | R8: A C KUMARESAN | X8: 00055137687 | Z8: A C KUMARESAN | AF8: 00055151204 | AH8: 999 MUSIC (IND) | AN8: IN L11 09 02099 | AO8: SHRI SHIVA DHYANAM TWO | AP8: PANDIT JASRAJ | AR8: KN | AS8: BIHARI | AY8: KUMAUNI | BI8: Unspecified Adaptation | BM8: Duet
B9: 00051494779 | C9: EROS INTERNATIONAL MEDIA LTD | D9: EROS INTERNATIONAL MEDIA LTD | F9: E | P9: 00055137785 | R9: A C THINAGARAN | X9: 00055137785 | Z9: A C THINAGARAN | AF9: 00055443974 | AH9: A A A FILMS | AN9: IN L11 09 02102 | AO9: SHRINGI NAADA BHASMA ANGA TWO | AP9: PANDIT JASRAJ | AR9: KS | AS9: ENGLISH | AY9: LAMBANI | BH9: Music Arrangement | BI9: Added Music | BM9: Feature Film
B10: 00051494779 | C10: EROS INTERNATIONAL MEDIA LTD | D10: SENLAC MUSIC LTD | F10: E | P10: 00055138194 | R10: A DEVANESAN | X10: 00055138194 | Z10: A DEVANESAN | AF10: 00055446083 | AH10: A B C FILMS INTERNATIONAL | AN10: IN L11 09 02103 | AO10: PASHUPATIM DYUMATIM DHARANI PATIM TWO | AP10: PANDIT JASRAJ | AR10: MS | AS10: GADHWALI | AY10: MAITHILI | BI10: Arranged Music | BM10: Female Vocal
B11: 00055136592 | C11: FARUK | D11: FARUK KAISER | E11: KAISER | F11: CA | P11: 00055138292 | R11: A G MANI | X11: 00055138292 | Z11: A G MANI | AF11: 00254246769 | AH11: A G FILMS PVT LTD | AN11: IN L11 09 02121 | AO11: SHRI GANESH ASHTOTTARSHATNAMARCHANSTOTRAM THREE | AP11: ASHWINI BHIDE | AR11: ML | AS11: GUJARATI | AY11: PURABIYA | BI11: Original Music | BM11: Folk
B12: 00055136984 | C12: GHAFIL | D12: GHAFIL HARNALVI | E12: HARNALVI | F12: CA | P12: 00055139289 | R12: A G NEELAKANDAN | X12: 00055139289 | Z12: A G NEELAKANDAN | AF12: 00254246867 | AH12: A G VISION LLP | AN12: IN L11 09 02518 | AO12: INSTRUMENTAL MUSIC ONE | AP12: LANGAS | AR12: MR | AS12: HARYANVI | BI12: Unspecified Arrangement | BM12: Folk Pop
B13: 00055137099 | C13: GOPAL DAS | D13: GOPAL DAS NEERAJ | E13: NEERAJ | F13: CA | P13: 00055140998 | R13: A GANESH | X13: 00055140998 | Z13: A GANESH | AF13: 00254247178 | AH13: A G VISION PVT LTD | AN13: IN L11 09 02521 | AO13: INSTRUMENTAL MUSIC TWO | AP13: LANGAS | AR13: NE | AS13: HIMACHALI | BH13: Both | BI13: Added Lyric | BM13: Fusion
B14: 00055137099 | C14: GOPAL DAS | D14: NEERAJ | E14: NEERAJ | F14: CA | P14: 00055141012 | R14: A ISABELLA | X14: 00055141012 | Z14: A ISABELLA | AF14: 00254247570 | AH14: A K MUSICAND FILMS ENTERTAINMENT | AN14: IN L11 09 02548 | AO14: CHANNA WEH RAATAN CHANDIYAN ONE | AP14: RESHMA | AR14: OR | AS14: HINDI | BI14: Added Music | BM14: Hip Hop
B15: 00055137687 | C15: HARISH | D15: HARISH DHAWAN | E15: DHAWAN | F15: C | P15: 00055141110 | R15: A ISAI | X15: 00055141110 | Z15: A ISAI | AF15: 00254247668 | AH15: A M N PRODUCTION INTERNATIONAL | AN15: IN L11 09 02617 | AO15: WOH JO HUM MEIN TUM MEIN TWO | AP15: FARIDA KHANUM | AR15: PA | AS15: KANNADA | BI15: Arranged Music | BM15: Indi Pop
B16: 00055137785 | C16: HASRAT | D16: HASRAT JAIPURI | E16: JAIPURI | F16: CA | P16: 00055141208 | R16: A J DANIEL | X16: 00055141208 | Z16: A J DANIEL | AF16: 00254247962 | AH16: A P INTERNATIONAL | AN16: IN L11 09 02831,USA560591437 | AO16: HAR SURAT VICH TU ONE | AP16: BARKAT SIDHU | AR16: SA | AS16: KASHMIRI | BI16: Modified lyric | BM16: Inspirational
B17: 00055138194 | C17: SHYAMLAL HARLAL RAI | D17: SHYAMLAL HARLAL RAI INDIVAR | E17: INDIVAR | F17: CA | P17: 00055141306 | R17: A JAS | X17: 00055141306 | Z17: A JAS | AF17: 00254248077 | AH17: A SQUARE ENTERTAINMENT | AN17: IN L11 09 03107,ISRCINL110903107 | AO17: ANKHIAN RASEELI TORI ONE | AP17: GIRIJA DEVI | AR17: SD | AS17: KASHMIRI | BI17: No Lyric | BM17: Jazz
B18: 00055138194 | C18: SHYAMLAL HARLAL RAI | D18: INDIVAAR | E18: INDIVAR | F18: CA | P18: 00055141404 | R18: A JAYAKUMAR | X18: 00055141404 | Z18: A JAYAKUMAR | AF18: 00254248273 | AH18: AA MUSIC ENTERTAINMENT | AN18: IN L11 09 03487 | AO18: EVARANI DEVAMRITHAVARSHINI ADI THYATARAJA ONE | AP18: NEDUNURI KRISHNAMURTHY | AR18: TA | AS18: MALAY | BI18: Original Lyric | BM18: Male Vocal
B19: 00055138292 | C19: IQBAL | D19: IQBAL GILL | E19: GILL | F19: C | P19: 00055141502 | R19: A JUBIN | X19: 00055141502 | Z19: A JUBIN | AF19: 00254248371 | AH19: AADISHAKTI FILMS PRIVATE LIMITED | AN19: IN L11 09 03544 | AO19: KAL SARI RATIYA VIDEO MIX THREE | AP19: SHANKAR MAHADEVAN | AR19: TE | AS19: MALAYALAM | BI19: Original Music | BM19: Mashup
B20: 00055138684 | C20: JANTA-CHITRA | D20: JANTA-CHITRA | F20: E | P20: 00055141600 | R20: A K CHAKRABORTY | X20: 00055141600 | Z20: A K CHAKRABORTY | AF20: 00254248567 | AH20: AAKASH MUSIC COMPANY | AN20: IN L11 09 03613 | AO20: GHAR GHAR AANGAN HOT BADHAYI ONE | AP20: SHUBHA MUDGAL | AR20: UR | AS20: MANIPURI | BI20: Replaced Lyric | BM20: Opening Theme
B21: 00055139289 | C21: JAIKISHAN | D21: JAIKISHAN PANCHAL | E21: PANCHAL | F21: C | P21: 00055141799 | R21: A K MADHUSUDAN | X21: 00055141799 | Z21: A K MADHUSUDAN | AF21: 00260819857 | AH21: AANANDA AUDIO VIDEO | AN21: IN L11 09 03613 | AO21: GHAR GHAR AANGAN HOT BADHAYI THREE | AP21: SHUBHA MUDGAL | AS21: MARATHI | BI21: Translated lyric | BM21: Pop
B22: 00055139289 | C22: JAIKISHAN | D22: SHANKAR JAIKISHAN | E22: PANCHAL | F22: C | P22: 00055144398 | R22: A K MISHRA | X22: 00055144398 | Z22: A K MISHRA | AF22: 00275147653 | AH22: AANSU MUSIC | AN22: IN L11 09 03613,ISRCINL110903613,USA560636358 | AO22: GHAR GHAR AANGAN HOT BADHAYI TWO | AP22: SHUBHA MUDGAL | AS22: NEPALI | BI22: Unspecified Adaptation | BM22: Rap
B23: 00055139289 | C23: JAIKISHAN | D23: SHANKAR JAIKISHAN | E23: PANCHAL | F23: C | P23: 00055144496 | R23: A K RISHAL SAI | X23: 00055144496 | Z23: A K RISHAL SAI | AF23: 00275147849 | AH23: AAP MUSIC CO | AN23: IN L11 09 03615 | AO23: MAANAT PARVA DIWARI KAU SUKH TWO | AP23: RAJAN & SAJAN MISHRA | AS23: ORIYA | BI23: Unspecified Arrangement | BM23: Recreated
B24: 00055139583 | C24: KAPUR-FILMS | D24: KAPUR-FILMS | F24: E | P24: 00055144594 | R24: A K UPADHYAY | X24: 00055144594 | Z24: A K UPADHYAY | AF24: 00275149255 | AH24: ABAK AUDIO | AN24: IN L11 09 03618,INL110903618,ISRCINL110903618 | AO24: AAJ DIPAT DIVYA DEEPMALIKA ONE | AP24: RAJAN & SAJAN MISHRA ,SHUBHA MUDGAL ,PANDITRAJANSAJANMISRA | AS24: PASHTO | BM24: Remix
B25: 00055140998 | C25: KAIFI | D25: KAIFI AZMI | E25: AZMI | F25: CA | P25: 00055144692 | R25: A M TURAZ | X25: 00055144692 | Z25: A M TURAZ | AF25: 00275149451 | AH25: ABHISHEK BAND COMPANY | AN25: IN L11 09 03717 | AO25: SOMVAAR AARTI SHRI SHIVA DEVTA THREE | AP25: RATTAN MOHAN SHARMA | AS25: PUNJABI | BM25: Reprise
B26: 00055141012 | C26: SHRINIVAS | D26: SHRINIVAS KHALE | E26: KHALE | F26: C | P26: 00055144790 | R26: A N SASIM | X26: 00055144790 | Z26: A N SASIM | AF26: 00275153857 | AH26: ABIRAMI AUDIO RECORDING PVT LTD | AN26: IN L11 09 03718 | AO26: MANGALVAAR AARTI SHRI BHAUM DEVTA ONE | AP26: RATTAN MOHAN SHARMA | AS26: RAJASTHANI | BM26: Romantic Happy
B27: 00055141110 | C27: LAXMIKANT | D27: LAXMIKANT KUDALKAR | E27: KUDALKAR | F27: C | P27: 00055144888 | R27: A P GOPALAM | X27: 00055144888 | Z27: A P GOPALAM | AF27: 00275154952 | AH27: ABIRAMI RECORDING CO | AN27: IN L11 09 03721 | AO27: SHUKRAVAAR AARTI SHRI SANTOSH MATA ONE | AP27: RATTAN MOHAN SHARMA | AS27: SANSKRIT | BM27: Romantic Sad
B28: 00055141110 | C28: LAXMIKANT | D28: LAXMIKANT SHANTARAM KUDALKAR | E28: KUDALKAR | F28: C | P28: 00055146490 | R28: A P MISHRA | X28: 00055146490 | Z28: A P MISHRA | AF28: 00275155165 | AH28: ABSTRACT MEDIAS | AN28: IN L11 09 03738 | AO28: NAVDURGA STOTRA TWO | AP28: RAVINDRA SATHE | AS28: SANTHALI | BM28: Sacred Music / Devotional
B29: 00055141110 | C29: LAXMIKANT | D29: LAXMIKANT S KUDALKAR | E29: KUDALKAR | F29: C | P29: 00055146588 | R29: A P RAJA | X29: 00055146588 | Z29: A P RAJA | AF29: 00275155263 | AH29: ACE MUSIC | AN29: IN L11 09 03738 | AO29: NAVDURGA STOTRA THREE | AP29: RAVINDRA SATHE | AS29: SINDHI | BM29: Sad
B30: 00055141110 | C30: LAXMIKANT | D30: LAXMIKANT | E30: KUDALKAR | F30: C | P30: 00055147879 | R30: A PA RASA | X30: 00055147879 | Z30: A PA RASA | AF30: 00275155949 | AH30: AD STUDIOS | AN30: IN L11 09 03738 | AO30: NAVDURGA STOTRA ONE | AP30: RAVINDRA SATHE | AS30: TAMIL | BM30: Signature Tune
B31: 00055141110 | C31: LAXMIKANT | D31: LAKSHMIKANT-PYARELAL | E31: KUDALKAR | F31: C | P31: 00055148190 | R31: A R NAGARAJAN | X31: 00055148190 | Z31: A R NAGARAJAN | AF31: 00275156064 | AH31: ADARSH JAIN FILMS AND SUN AUDIO PVT LTD | AN31: IN L11 09 03739 | AO31: DEVI ATHARVASHIRSHAM ONE | AP31: RAVINDRA SATHE | AS31: TELUGU | BM31: Station ID
B32: 00055141208 | C32: JAG PHOOL | D32: JAG PHOOL KAUSHIK | E32: KAUSHIK | F32: C | P32: 00055149775 | R32: A R NESHAN | X32: 00055149775 | Z32: A R NESHAN | AF32: 00275156750 | AH32: ADITYA MULTIMEDIA & ENTERTAINMENT | AN32: IN L11 09 03847 | AO32: ABR MI BARAD ONE | AP32: ZILA KHAN | AS32: URDU | BM32: Unplugged
B33: 00055141208 | C33: JAG PHOOL | D33: J P KAUSHIK | E33: KAUSHIK | F33: C | P33: 00055149971 | R33: A R RAHMAN | X33: 00055149971 | Z33: A R RAHMAN | AF33: 00275156848 | AH33: ADITYA MUSIC | AN33: IN L11 09 03907 | AO33: YEH DIL ONE | AP33: GEETIKA VARDE QURESHI
B34: 00055141306 | C34: USHA | D34: USHA KHANNA | E34: KHANNA | F34: C | P34: 00055150011 | R34: A R RAIHANAH | X34: 00055150011 | Z34: A R RAIHANAH | AF34: 00275157943 | AH34: ADITYA MUSIC (INDIA) PVT. LTD. | AN34: IN L11 09 04138,ISRCINL110904445 | AO34: SHRI SARASWATIJI KI AARTI TWO | AP34: SADHNA SARGAM
B35: 00055141404 | C35: KHAYYAM | D35: KHAYYAM M Z | E35: M Z | F35: C | P35: 00055150109 | R35: A R RAJA | X35: 00055150109 | Z35: A R RAJA | AF35: 00275159055 | AH35: AFFECTION MUSIC RECORDS INDIA PVT LTD | AN35: IN L11 09 04380 | AO35: SHRI GANESH DHYANAM ONE | AP35: SADHNA SARGAM
B36: 00055141404 | C36: KHAYYAM | D36: KHAYYAM | E36: M Z | F36: C | P36: 00055150207 | R36: A R SUNNY | X36: 00055150207 | Z36: A R SUNNY | AF36: 00275160176 | AH36: AFREEN MUSIC | AN36: IN L11 09 04381 | AO36: SHRI GAJANAN STOTRAM ONE | AP36: SURESH WADKAR
B37: 00055141502 | C37: KAMAL | D37: KAMAL KANT | E37: KANT | F37: C | P37: 00055439862 | R37: A RAJU | X37: 00055439862 | Z37: A RAJU | AF37: 00275160274 | AH37: AFTAB AUDIO VIDEO | AN37: IN L11 09 04381 | AO37: SHRI GAJANAN STOTRAM TWO | AP37: SURESH WADKAR
B38: 00055141502 | C38: KAMAL | D38: KANT KAMAL | E38: KANT | F38: C | P38: 00055440000 | R38: A RAMALINGAM | X38: 00055440000 | Z38: A RAMALINGAM | AF38: 00275162268 | AH38: AFTAB MUSIC INDUSTRIES | AN38: IN L11 09 04381 | AO38: SHRI GAJANAN STOTRAM THREE | AP38: SURESH WADKAR
B39: 00055141600 | C39: SURINDER | D39: SURINDER KOHLI | E39: KOHLI | F39: C | P39: 00055440199 | R39: A S ANBUSELVAN | X39: 00055440199 | Z39: A S ANBUSELVAN | AF39: 00275163167 | AH39: AFTAB PICTURES PVT LTD | AN39: IN L11 09 04384 | AO39: SHRI GANAPATI STAVAH TWO | AP39: SURESH WADKAR
B40: 00055141799 | C40: VISHNU | D40: VISHNU KHANNA | E40: KHANNA | F40: C | P40: 00055440297 | R40: A S SUBRAMANIAN | X40: 00055440297 | Z40: A S SUBRAMANIAN | AF40: 00275163853 | AH40: AGI MUSIC PVT LTD | AN40: IN L11 09 04384 | AO40: SHRI GANAPATI STAVAH THREE | AP40: SURESH WADKAR
B41: 00055144398 | C41: HARBANS | D41: HARBANS MALHOTRA | E41: MALHOTRA | F41: C | P41: 00055440395 | R41: A SIVAMANI | X41: 00055440395 | Z41: A SIVAMANI | AF41: 00275163951 | AH41: AGK ENTERPRISES | AN41: IN L11 09 04384,ISRCINL110904384 | AO41: SHRI GANAPATI STAVAH ONE | AP41: SURESH WADKAR
B42: 00055144398 | C42: HARBANS | D42: HARI ARJUN | E42: MALHOTRA | F42: C | P42: 00055440591 | R42: A SOLOMON JOSEPH | X42: 00055440591 | Z42: A SOLOMON JOSEPH | AF42: 00275164752 | AH42: AIRTECH SOLUTIONS | AN42: IN L11 09 04419 | AO42: SHRI NAVA DURGA STOTRAM TWO | AP42: RAVINDRA SATHE
B43: 00055144398 | C43: HARBANS | D43: HARI ARJUN | E43: MALHOTRA | F43: C | P43: 00055440787 | R43: A STEPHEN RAJ | X43: 00055440787 | Z43: A STEPHEN RAJ | AF43: 00275165651 | AH43: AJIT FILMS | AN43: IN L11 09 04421 | AO43: SHRI ARGALA STOTRAM ONE | AP43: RAVINDRA SATHE
B44: 00055144398 | C44: HARBANS | D44: HARI ARJUN | E44: MALHOTRA | F44: C | P44: 00055440885 | R44: A T PIPARE | X44: 00055440885 | Z44: A T PIPARE | AF44: 00275166746 | AH44: AJNA MEDIA | AN44: IN L11 09 04438 | AO44: SHRI GAYATRI AARTI TWO | AP44: SADHNA SARGAM
B45: 00055144496 | C45: MOHINDER SINGH | D45: MOHINDER SINGH SARNA | E45: SARNA | F45: C | P45: 00055442193 | R45: A T UMMER | X45: 00055442193 | Z45: A T UMMER | AF45: 00275167645 | AH45: AKAMAH | AN45: IN L11 09 04537 | AO45: MANASUKKUL OKANDHU THREE | AP45: MOHAMMED RIZWAN
B46: 00055144496 | C46: MOHINDER SINGH | D46: S MOHINDER BAKSHI | E46: SARNA | F46: C | P46: 00055442487 | R46: A UTHRIANATHAN | X46: 00055442487 | Z46: A UTHRIANATHAN | AF46: 00275167743 | AH46: AKAMAH PRODUCTIONS | AN46: IN L11 09 04537 | AO46: MANASUKKUL OKANDHU ONE | AP46: MOHAMMED RIZWAN
B47: 00055144496 | C47: MOHINDER SINGH | D47: SARNA MOHINDER | E47: SARNA | F47: C | P47: 00055442585 | R47: A V VASUDEVAN POTTI | X47: 00055442585 | Z47: A V VASUDEVAN POTTI | AF47: 00275167841 | AH47: AKASH MUSIC | AN47: IN L11 09 04537,ISRCINL110904537 | AO47: MANASUKKUL OKANDHU TWO | AP47: MOHAMMED RIZWAN
B48: 00055144496 | C48: MOHINDER SINGH | D48: S MOHINDER BAKSHI | E48: SARNA | F48: C | P48: 00055442781 | R48: AABAVANAN | X48: 00055442781 | Z48: AABAVANAN | AF48: 00275168740 | AH48: AKSHAR INTERNATIONAL PRODUCTIONS | AN48: IN L11 09 04539 | AO48: IDHAYAM THIRANDALE ONE | AP48: DR LAVANYA
B49: 00055144496 | C49: MOHINDER SINGH | D49: SARNA MOHINDER | E49: SARNA | F49: C | P49: 00055442879 | R49: AABHA HANJURA | X49: 00055442879 | Z49: AABHA HANJURA | AF49: 00275170368 | AH49: AL - TAHIR ENTERTAINMENTS | AN49: IN L11 09 04539 | AO49: IDHAYAM THIRANDALE TWO | AP49: DR LAVANYA
B50: 00055144496 | C50: MOHINDER SINGH | D50: S MOHINDER BAKSHI | E50: SARNA | F50: C | P50: 00055442977 | R50: AABHAS JOSHI | X50: 00055442977 | Z50: AABHAS JOSHI | AF50: 00275171463 | AH50: ALAAP RECORDS | AN50: IN L11 09 04539,ISRCINL110904539 | AO50: IDHAYAM THIRANDALE THREE | AP50: DR LAVANYA
B51: 00055144496 | C51: MOHINDER SINGH | D51: SARNA MOHINDER | E51: SARNA | F51: C | P51: 00055445184 | R51: AABHIK GHOSH | X51: 00055445184 | Z51: AABHIK GHOSH | AF51: 00275175451 | AH51: ALANKAR MUSIC | AN51: IN L11 09 04615 | AO51: CHATUR RAGAMALIKA PALLAVI TWO | AP51: K V NARAYANASWAMY
B52: 00055144496 | C52: MOHINDER SINGH | D52: S MOHINDER | E52: SARNA | F52: C | P52: 00055445380 | R52: AABIR MUKHERJEE | X52: 00055445380 | Z52: AABIR MUKHERJEE | AF52: 00275175647 | AH52: ALFA STAR ENTERTAINMENT | AN52: IN L11 09 04615 | AO52: CHATUR RAGAMALIKA PALLAVI THREE | AP52: K V NARAYANASWAMY
B53: 00055144594 | C53: S | D53: S MADAN | E53: MADAN | F53: C | P53: 00055445478 | R53: AACHARYA LAKHAN SHARAN BHARDWAJ | X53: 00055445478 | Z53: AACHARYA LAKHAN SHARAN BHARDWAJ | AF53: 00275177935 | AH53: ALIVE MEDIA PRODUCTIONS AND ENTERTAINMENT PVT LTD | AN53: IN L11 09 04719 | AO53: ADAMODI RAGAM CHARUKESI ONE | AP53: M BALAMURALI KRISHNA
B54: 00055144692 | C54: MADAN | D54: MADAN MOHAN | E54: MOHAN | F54: C | P54: 00055446573 | R54: AADAM | X54: 00055446573 | Z54: AADAM | AF54: 00275178638 | AH54: ALIVE MUSIC | AN54: IN L11 09 04719 | AO54: ADAMODI RAGAM CHARUKESI TWO | AP54: M BALAMURALI KRISHNA
B55: 00055144790 | C55: MANOHAR LAL | D55: MANOHAR LAL ARORA | E55: ARORA | F55: C | P55: 00055446867 | R55: AADESH RAVI | X55: 00055446867 | Z55: AADESH RAVI | AF55: 00275178736 | AH55: ALLIED PICTURES PVT. LTD. | AN55: IN L11 09 04719 | AO55: ADAMODI RAGAM CHARUKESI THREE | AP55: M BALAMURALI KRISHNA
B56: 00055144888 | C56: BHUSHAN | D56: BHUSHAN MEHTA | E56: MEHTA | F56: C | P56: 00055446965 | R56: AADESH SHRIVASTAVA | X56: 00055446965 | Z56: AADESH SHRIVASTAVA | AF56: 00275180266 | AH56: ALLSTAR CREATIONS | AN56: IN L11 09 04776 | AO56: VEGAMAY RAGAM ABHOGI TWO | AP56: M BALAMURALI KRISHNA
B57: 00055146490 | C57: NAUSHAD | D57: NAUSHAD ALI | E57: ALI | F57: C | P57: 00055447178 | R57: AADESHRAVI | X57: 00055447178 | Z57: AADESHRAVI | AF57: 00275180364 | AH57: ALPHA DIGITECH | AN57: IN L11 09 04776 | AO57: VEGAMAY RAGAM ABHOGI THREE | AP57: M BALAMURALI KRISHNA
B58: 00055146490 | C58: NAUSHAD | D58: NAUSHAD | E58: ALI | F58: C | P58: 00055447276 | R58: AADITYA GOUR | X58: 00055447276 | Z58: AADITYA GOUR | AF58: 00360659451 | AH58: AMAR AUDIO | AN58: IN L11 09 04781 | AO58: TILLANA RAGAM BEHAG ONE | AP58: M BALAMURALI KRISHNA
B59: 00055146588 | C59: NAQSH | D59: NAQSH LYALLPURI | E59: LYALLPURI | F59: CA | P59: 00055447374 | R59: AADITYAN | X59: 00055447374 | Z59: AADITYAN | AF59: 00368527720 | AH59: AMAR CHITRA INTERNATIONAL | AN59: IN LII 09 07015,IN LII 09 07015 | AO59: AAJ HONA DEEDAR MAHI DA MEDLEY THREE | AP59: SALEEM
B60: 00055147585 | C60: PRIDE OF ASIA FILMS | D60: PRIDE OF ASIA FILMS | F60: E | P60: 00055447766 | R60: AAGAM CHANDRAKANT SHETH | X60: 00055447766 | Z60: AAGAM CHANDRAKANT SHETH | AF60: 00373589713 | AH60: AMARA MUZIK PVT LTD | AN60: IN LII 09 08002 | AO60: JAGAT GUR BABA ONE | AP60: BHAI SANT SINGH AADIL
B61: 00055147879 | C61: SUDHIR V | D61: SUDHIR V PHADKE | E61: PHADKE | F61: C | P61: 00055448763 | R61: AAKASH HASHA GHARAT | X61: 00055448763 | Z61: AAKASH HASHA GHARAT | AF61: 00373589811 | AH61: AMIABLE NETWORK | AN61: IN LII 09 09045 | AO61: MEHNDI TAAN SAJDI THREE | AP61: RUNA LAILA
B62: 00055148190 | C62: QAMAR | D62: QAMAR JALALABADI | E62: JALALABADI | F62: CA | P62: 00055449074 | R62: AAKASH MAHENDRA RIJIA | X62: 00055449074 | Z62: AAKASH MAHENDRA RIJIA | AF62: 00373590246 | AH62: AMIT BRAR ARTS | AN62: IN LII 09 09047,INLII0909042,INLII0909047 | AO62: AAYA LADIYE TWO | AP62: RUNA LAILA
B63: 00055149775 | C63: RAMLAL | D63: RAMLAL | F63: C | P63: 00055449270 | R63: AAKASH PARMAR | X63: 00055449270 | Z63: AAKASH PARMAR | AF63: 00373590736 | AH63: AMIT ENTERPRISES | AN63: IN LII 11 13406 | AO63: SURYA STOTRAM TWO | AP63: RAJKUMAR BHARATHI
B64: 00055149971 | C64: C | D64: C RAMCHANDRA | E64: RAMCHANDRA | F64: C | P64: 00055757943 | R64: AAKASH RIJIA | X64: 00055757943 | Z64: AAKASH RIJIA | AF64: 00373592142 | AH64: AMIYA | AN64: IN LII 11 13469 | AO64: SHANI ASHTOTRA SHATHANAMA STOTRAM TWO | AP64: RAJKUMAR BHARATHI
B65: 00055149971 | C65: C | D65: RAMCHANDRA CHITALKAR | E65: RAMCHANDRA | F65: C | P65: 00056183379 | R65: AALAAP RAJU J A | X65: 00056183379 | Z65: AALAAP RAJU J A | AF65: 00373592436 | AH65: AMIYA ART INTERNATIONAL | AN65: IN LII 11 13470 | AO65: DIWAKARA TANUJA DIKSHITHAR KRITHI TWO | AP65: RAJKUMAR BHARATHI
B66: 00055150011 | C66: RATANDEEP | D66: RATANDEEP | F66: C | P66: 00057450967 | R66: AAMER KHAN SUNAGAD | X66: 00057450967 | Z66: AAMER KHAN SUNAGAD | AF66: 00373595133 | AH66: AMOL CHITRA | AN66: IN LII 11 13472 | AO66: SHANI CHALISA TWO | AP66: RAJKUMAR BHARATHI
B67: 00055150011 | C67: RATANDEEP | D67: ABDUL SATTAR | F67: C | P67: 00057451082 | R67: AAMIR ALI | X67: 00057451082 | Z67: AAMIR ALI | AF67: 00373596718 | AH67: AMRITT SAAGAR | AN67: IN LII 11 13477 | AO67: RAAHU KAVACHAM TWO | AP67: RAJKUMAR BHARATHI
B68: 00055150109 | C68: RAVI SHANKAR | D68: RAVI SHANKAR SHARMA | E68: SHARMA | F68: C | P68: 00058998406 | R68: AAMIR ALI SULTAN | X68: 00058998406 | Z68: AAMIR ALI SULTAN | AF68: 00373596816 | AH68: AMUTHAM MUSIC PVT LTD | AN68: IN LII 11 13482 | AO68: RAAHU GAYATHRI TWO | AP68: RAJKUMAR BHARATHI
B69: 00055150109 | C69: RAVI SHANKAR | D69: BOMBAY RAVI | E69: SHARMA | F69: C | P69: 00058998602 | R69: AAMIR MIR | X69: 00058998602 | Z69: AAMIR MIR | AF69: 00373597225 | AH69: ANAHAD FOUNDATION | AN69: IN LII 11 13492,ISRCINL111113492 | AO69: KETU GAYATHRI TWO | AP69: RAJKUMAR BHARATHI
B70: 00055150109 | C70: RAVI SHANKAR | D70: RAVI | E70: SHARMA | F70: C | P70: 00058998700 | R70: AAMIR NASIR SHAIKH | X70: 00058998700 | Z70: AAMIR NASIR SHAIKH | AF70: 00373597323 | AH70: ANAND CASSETTE INDUSTRIES | AN70: IND131900003 | AO70: FACEBOOK TE DP TERI | AP70: DALER MEHNDI
B71: 00055150207 | C71: RAJINDER | D71: RAJINDER KRISHAN | E71: KRISHAN | F71: CA | P71: 00058999109 | R71: AAMIR SHAIKH | X71: 00058999109 | Z71: AAMIR SHAIKH | AF71: 00373597421 | AH71: ANB COORDINATORS | AN71: INM731400075 | AO71: DIL TERA KHOTA | AP71: KULBIR JHINJER
B72: 00055150207 | C72: RAJINDER | D72: KRISHAN RAJENDRA | E72: KRISHAN | F72: CA | P72: 00058999403 | R72: AARA TAHSEEN | X72: 00058999403 | Z72: AARA TAHSEEN | AF72: 00373597519 | AH72: ANGEL DIGITAL PVT LTD | AN72: INM731400077 | AO72: KUDI VELLE NU | AP72: KULBIR JHINJER
B73: 00055151008 | C73: SEVEN ARTS PICTURES | D73: SEVEN ARTS PICTURES | F73: E | P73: 00062137894 | R73: AARIF KHAN | X73: 00062137894 | Z73: AARIF KHAN | AF73: 00373599317 | AH73: ANGLE MUSIC VIDEO PVT LTD | AN73: INM731400138 | AO73: HOSTEL ONE | AP73: PRABH GILL
B74: 00055151204 | C74: SHANKAR-MOVIES | D74: SHANKAR-MOVIES | F74: E | P74: 00062141513 | R74: AARON KARTHIK VENKATESH | X74: 00062141513 | Z74: AARON KARTHIK VENKATESH | AF74: 00373600081 | AH74: ANJALI FILMS PRODUCTIONS | AN74: INM731400195 | AO74: CHAAR DIN ZINDAGI DE | AP74: SHARRY MANN
B75: 00055439862 | C75: SHAILEY | D75: SHAILEY SHAILENDRA | E75: SHAILENDRA | F75: CA | P75: 00062141611 | R75: AARONAAMIR | X75: 00062141611 | Z75: AARONAAMIR | AF75: 00373601078 | AH75: ANJUM RIZVI FILM CO | AN75: INM731400196 | AO75: JAAN JAAN MERE KOLON | AP75: SHARRY MANN
B76: 00055439862 | C76: SHAILEY | D76: SHAILENDRA SHAILEY | E76: SHAILENDRA | F76: CA | P76: 00062141709 | R76: AARTI | X76: 00062141709 | Z76: AARTI | AF76: 00373601862 | AH76: ANNWESHA MUSIC | AN76: 0 | AO76: PHOOLIYAI RI MA | AP76: DAYARAM ,CHOROUS
B77: 00055439862 | C77: SHAILEY | D77: SHAILENDRA SHILEY | E77: SHAILENDRA | F77: CA | P77: 00062142020 | R77: AARTI MUKHRJEE | X77: 00062142020 | Z77: AARTI MUKHRJEE | AF77: 00373601960 | AH77: ANOOPAM ART INTERNATIONAL | AN77: 0 | AO77: AAYO PHAGANIYO | AP77: SEEMA ,RAKESH ,SEEMAMISHRA ,SANJAYBHAGI
B78: 00055439862 | C78: SHAILEY | D78: SHAILENDRA SHAILEY | E78: SHAILENDRA | F78: CA | P78: 00062142118 | R78: AARTI SETHI | X78: 00062142118 | Z78: AARTI SETHI | AF78: 00373602761 | AH78: ANU ARTS | AN78: 0 | AO78: 0 | AP78: SEEMA
B79: 00055439862 | C79: SHAILEY | D79: SHAILENDRA SHAILEY | E79: SHAILENDRA | F79: CA | P79: 00062142216 | R79: AARUR TAMILNADAN | X79: 00062142216 | Z79: AARUR TAMILNADAN | AF79: 00373604559 | AH79: ANUJA CREATIONS | AN79: 10078819,INY181601007 | AO79: SAINYEA | AP79: KAMAL KHAN
B80: 00055440000 | C80: KALYANJI V | D80: KALYANJI V SHAH | E80: SHAH | F80: C | P80: 00062142314 | R80: AARUSH ARORA | X80: 00062142314 | Z80: AARUSH ARORA | AF80: 00373609740 | AH80: ANUPAM ROY CREATIONS | AN80: 1NS3108000242,INM441400917 | AO80: ELLAM ARIYUNNA | AP80: WILSWARAJ
B81: 00055440000 | C81: KALYANJI V | D81: KALYANJI | E81: SHAH | F81: C | P81: 00062142412 | R81: AARZOO | X81: 00062142412 | Z81: AARZOO | AF81: 00373615846 | AH81: ANURAG HALDER PRODUCTIONS AHP | AN81: 1NS3109000361,INM441501119 | AO81: ASANARUDE BEEVI | AP81: NAJEEM ARSHAD ,SARITHA RAJEEV
B82: 00055440000 | C82: KALYANJI V | D82: KALYANJI ANANDJI | E82: SHAH | F82: C | P82: 00062142510 | R82: AAS MOHAMMAD | X82: 00062142510 | Z82: AAS MOHAMMAD | AF82: 00373617938 | AH82: ANUSH | AN82: 1NS3109000514,INS181206075 | AO82: KADAVALLOOR | AP82: MADHU BALAKRISHNAN
B83: 00055440000 | C83: KALYANJI V | D83: KALYANJI ANANDJI | E83: SHAH | F83: C | P83: 00062142706 | R83: AASAN | X83: 00062142706 | Z83: AASAN | AF83: 00373620073 | AH83: ANUSH AUDIO | AN83: 1NS3109000745,INM251211992 | AO83: ANNU KANDA | AP83: SHAFI KOLLAM
B84: 00055440199 | C84: ANANDJI V | D84: ANANDJI V SHAH | E84: SHAH | F84: C | P84: 00062143017 | R84: AASH | X84: 00062143017 | Z84: AASH | AF84: 00373620465 | AH84: ANUSHKA FILMS ENTERTAINMENT | AN84: 1NS3109000746,INM251211988 | AO84: ENNUMENNUM | AP84: SAKHEER ALUVA
B85: 00055440199 | C85: ANANDJI V | D85: ANANDJI | E85: SHAH | F85: C | P85: 00062143311 | R85: AASHIF AYUBBHAI PANJWANI | X85: 00062143311 | Z85: AASHIF AYUBBHAI PANJWANI | AF85: 00373621168 | AH85: ANUVAAD | AN85: 1NS3109000747,INM251211990 | AO85: INIYORU | AP85: SALEEM KODATHOOR
B86: 00055440199 | C86: ANANDJI V | D86: KALYANJI ANANDJI | E86: SHAH | F86: C | P86: 00062143507 | R86: AASHISH GUPTA | X86: 00062143507 | Z86: AASHISH GUPTA | AF86: 00373621462 | AH86: APEKSHA MUSIC | AN86: 1NS3109000749,INM251211993 | AO86: KANANERE | AP86: SAKHEER ALUVA
B87: 00055440199 | C87: ANANDJI V | D87: KALYANJI ANANDJI | E87: SHAH | F87: C | P87: 00062144210 | R87: AASHISH KUMAR VERMA | X87: 00062144210 | Z87: AASHISH KUMAR VERMA | AF87: 00373621658 | AH87: APEX INTERNATIONAL MEDIA | AN87: 1NS3109000750,INM251211991 | AO87: KUPPIVALA | AP87: SAKHEER ALUVA
B88: 00055440297 | C88: M L | D88: M L SONIK | E88: SONIK | F88: C | P88: 00062144602 | R88: AASHISH REGO | X88: 00062144602 | Z88: AASHISH REGO | AF88: 00373622165 | AH88: APPLAUSE ENTERTAINMENT PVT LTD | AN88: 728264 | AO88: AAJA BABA NANKA PUNJABI | AP88: VEER SUKHVANT
B89: 00055440297 | C89: M L | D89: SONIK (IN 1) OMI | E89: SONIK | F89: C | P89: 00062145798 | R89: AASHISH SINGH | X89: 00062145798 | Z89: AASHISH SINGH | AF89: 00373623260 | AH89: APPLE MUSIC | AN89: AEA0E8703096,INS181204753,INS239200143 | AO89: AMBALAPPUZHE | AP89: M.G. SREEKUMAR ,K.S. CHITHRA
B90: 00055440297 | C90: M L | D90: SONIK-OMI | E90: SONIK | F90: C | P90: 00062145896 | R90: AASHU | X90: 00062145896 | Z90: AASHU | AF90: 00373625744 | AH90: AQ RECORDS LLP | AN90: AEA0E9202376,IN1992000163,INN199200163 | AO90: PATHIRAKKILI | AP90: YESUDAS ,KJYESUDAS ,SPVENKITESH
B91: 00055440395 | C91: OM PRAKASH | D91: OM PRAKASH SONIK | E91: SONIK | F91: CA | P91: 00062146599 | R91: AASMOHAMMAD WAHIDAHMED CHOUDHRY | X91: 00062146599 | Z91: AASMOHAMMAD WAHIDAHMED CHOUDHRY | AF91: 00373625842 | AH91: AR MUSIC STUDIOS | AN91: AEA0E9208275,INS181205521 | AO91: KOMBEDU KUZHALEDU | AP91: M.G. SREEKUMAR
B92: 00055440395 | C92: OM PRAKASH | D92: SONIK OMI | E92: SONIK | F92: CA | P92: 00062147596 | R92: AASU BAKSHI | X92: 00062147596 | Z92: AASU BAKSHI | AF92: 00373626251 | AH92: AR PRODUCTIONS | AN92: AEA0E9304283,INN199300191 | AO92: KUNJURANGUM(F) | AP92: CHITHRA
B93: 00055440395 | C93: OM PRAKASH | D93: SONIK-OMI | E93: SONIK | F93: CA | P93: 00062147694 | R93: AATISH JAONPURI | X93: 00062147694 | Z93: AATISH JAONPURI | AF93: 00373626741 | AH93: ARADHANA FILMS | AN93: AEA0Q1728825,IN-G12-09-00032,INT281600153 | AO93: MAA | AP93: SUKHVIR SUKHA ,SUDESH KUMARI
B94: 00055440591 | C94: R S SHANKAR | D94: R S SHANKAR SINGH | E94: SINGH | F94: C | P94: 00062148691 | R94: AATISH KAPADIA | X94: 00062148691 | Z94: AATISH KAPADIA | AF94: 00373627738 | AH94: ARATI | AN94: AN0032TR01,FR10S1754324,INT131201347 | AO94: AARTI | AP94: SUDHANSHU RAJ ,BHAVYA PANDIT
B95: 00055440591 | C95: R S SHANKAR | D95: SHANKAR JAIKISHAN | E95: SINGH | F95: C | P95: 00062149198 | R95: AAVEYKANNAN | X95: 00062149198 | Z95: AAVEYKANNAN | AF95: 00373633844 | AH95: ARC MUSICQ PRIVATE LIMITED | AN95: ATR981170184,INS180803218 | AO95: SHOKEEN KUDIYE | AP95: RUPINDER HANDA
B96: 00055440591 | C96: R S SHANKAR | D96: SHANKAR JAIKISHAN | E96: SINGH | F96: C | P96: 00062149296 | R96: AAZAAD | X96: 00062149296 | Z96: AAZAAD | AF96: 00373636051 | AH96: ARCLIGHTZ AND FILMS PVT LTD. | AN96: ATR981170429 | AO96: GHAR JAANA HAI | AP96: KONARK SARANGI
B97: 00055440787 | C97: SAPAN | D97: SAPAN SENGUPTA | E97: SENGUPTA | F97: C | P97: 00062154699 | R97: AAZAAD DUBE | X97: 00062154699 | Z97: AAZAAD DUBE | AF97: 00373636149 | AH97: ARKWORKS CHANNEL | AN97: ATR981187807 | AO97: HAUSLA NA RUTHE | AP97: KONARK SARANGI
B98: 00055440787 | C98: SAPAN | D98: SAPAN JAGMOHAN | E98: SENGUPTA | F98: C | P98: 00062156399 | R98: AB MADHAV | X98: 00062156399 | Z98: AB MADHAV | AF98: 00373636247 | AH98: ART MOVIE | AN98: ATR981194849,INS74190003 | AO98: SHOOT DA ORDER 2 | AP98: JAGGI JAGOWAL
B99: 00055440787 | C99: SAPAN | D99: SAPAN-JAGMOHAN | E99: SENGUPTA | F99: C | P99: 00062160214 | R99: ABASO RAJARAM JADHAV | X99: 00062160214 | Z99: ABASO RAJARAM JADHAV | AF99: 00373636345 | AH99: ARTI FILMS OFFICIAL | AN99: AUCIK1700101 | AO99: UNJ TA BAPU NAL PEHLE DIN TO | AP99: NAVI BAWA ,BAAGI BHANGU WITH GURMEET SINGH
B100: 00055440787 | C100: SAPAN | D100: SAPAN-JAGMOHAN | E100: SENGUPTA | F100: C | P100: 00062161211 | R100: ABBAS | X100: 00062161211 | Z100: ABBAS | AF100: 00373636443 | AH100: ARUN AUDIO | AN100: AUCIK1700101 | AO100: UJADAN UTEY AAYE ASI | AP100: NAVI BAWA ,BAAGI BHANGU WITH GURMEET SINGH
B101: 00055440885 | C101: MOHAMMED | D101: MOHAMMED SHAFI | E101: SHAFI | F101: C | P101: 00062161309 | R101: ABBAS FAKIRMOHAMED TYREWALA | X101: 00062161309 | Z101: ABBAS FAKIRMOHAMED TYREWALA | AF101: 00373636541 | AH101: ARUNA MUSIC ENTERTAINMENT | AN101: AUCIK1700101 | AO101: MURR BAPU PUNJAB | AP101: NAVI BAWA ,BAAGI BHANGU WITH GURMEET SINGH
B102: 00055442193 | C102: JAIDEV | D102: JAIDEV VERMA | E102: VERMA | F102: C | P102: 00062161603 | R102: ABBAS KHAN | X102: 00062161603 | Z102: ABBAS KHAN | AF102: 00373636639 | AH102: ARUTPERUMJOTHI AUDIO | AN102: AUCIK1700201 | AO102: APNIYA NE GAIRA NAL RALKE | AP102: KARAN SINGH BAJWA ,FEAT SATTA VAIRDWALIA
B103: 00055442193 | C103: JAIDEV | D103: JAIDEV | E103: VERMA | F103: C | P103: 00062162995 | R103: ABDUL GANI SHAIKH | X103: 00062162995 | Z103: ABDUL GANI SHAIKH | AF103: 00373636737 | AH103: ARVIND CASSETTES INDUSTRIES | AN103: BDA0U1800472,INS181600481 | AO103: SUPERMAN | AP103: YO YO HONEY SINGH
B104: 00055442487 | C104: AJOY | D104: AJOY DAS | E104: DAS | F104: C | P104: 00062946755 | R104: ABDUL KASIM | X104: 00062946755 | Z104: ABDUL KASIM | AF104: 00373637146 | AH104: ARZOO FILMS | AN104: CA3SS0404403,INF111600097,INF111600214,INS180802946 | AO104: COLLEGE | AP104: KULWINDER DHILLON
B105: 00055442585 | C105: MAJROOH | D105: MAJROOH SULTANPURI | E105: SULTANPURI | F105: CA | P105: 00062946951 | R105: ABDUL KUDDUS SHAIK | X105: 00062946951 | Z105: ABDUL KUDDUS SHAIK | AF105: 00373638731 | AH105: ASA PRODUCTIONS AND ENTERPRISES PVT. LTD. | AN105: CA3SS0404902,INS180500647 | AO105: MERE MAPIAN NE | AP105: SUKHDEV DARAPURIA ,NAVSARAO
B106: 00055442781 | C106: SHAMOUL HUDA | D106: SHAMOUL HUDA BIHARI | E106: BIHARI | F106: CA | P106: 00063078090 | R106: ABDUL MAJEED SHOLA | X106: 00063078090 | Z106: ABDUL MAJEED SHOLA | AF106: 00373639238 | AH106: ASHA AUDIO COMPANY | AN106: CA3SS0404903,INS180500651 | AO106: SETHI HASDI | AP106: SUKHDEV DARAPURIA ,NAVSARAO ,BALJINDERRIMPI
B107: 00055442781 | C107: SHAMOUL HUDA | D107: BIHARI S H | E107: BIHARI | F107: CA | P107: 00063078286 | R107: ABDUL MALEK | X107: 00063078286 | Z107: ABDUL MALEK | AF107: 00373639826 | AH107: ASHASHREE FILMS INTERNATIONAL | AN107: CA3SS0506804,INS180901751 | AO107: THUMKE | AP107: JOTI DHILLON
B108: 00055442781 | C108: SHAMOUL HUDA | D108: S H BIHARI | E108: BIHARI | F108: CA | P108: 00122060435 | R108: ABDUL MALIK HAMID KHAN | X108: 00122060435 | Z108: ABDUL MALIK HAMID KHAN | AF108: 00373640261 | AH108: ASHEEMA CREATIONS | AN108: CA3SS0506807,INS180901748 | AO108: GABHRU | AP108: JOTI DHILLON
B109: 00055442879 | C109: SHYAMAL | D109: SHYAMAL GUPTA | E109: GUPTA | F109: CA | P109: 00122060533 | R109: ABDUL RAFIQ | X109: 00122060533 | Z109: ABDUL RAFIQ | AF109: 00373640947 | AH109: ASHOK SOUND | AN109: CA3SS0506808,INS180901754 | AO109: MELE | AP109: JOTI DHILLON
B110: 00055442977 | C110: VARMA | D110: VARMA MALIK | E110: MALIK | F110: CA | P110: 00122060631 | R110: ABDUL RASHEED | X110: 00122060631 | Z110: ABDUL RASHEED | AF110: 00373641258 | AH110: ASHUTOSH GOWARIKER PRODUCTION PVT LTD | AN110: CA3SS0506811,INS180901750 | AO110: LALKARA | AP110: JOTI DHILLON
B111: 00055443974 | C111: AR PRODUCTIONS | D111: AR PRODUCTIONS | F111: E | P111: 00122060729 | R111: ABDUL RASHEED SHAIKH | X111: 00122060729 | Z111: ABDUL RASHEED SHAIKH | AF111: 00373641748 | AH111: ASHWIN ARTS | AN111: CA3SS0716507,INF151500130,INM731500115,INM731501031,INS171290609,INS180241408,INT100600348 | AO111: JAWANI | AP111: SURJIT BINDRAKHIA
B112: 00055445184 | C112: AKHTAR | D112: AKHTAR ROMANI | E112: ROMANI | F112: CA | P112: 00122060827 | R112: ABDUL SATTAR | X112: 00122060827 | Z112: ABDUL SATTAR | AF112: 00373641846 | AH112: ASHWINI MEDIA NETWORKS | AN112: CA3SS0817702,GBLQN0826002,INM701200008 | AO112: SHARAAB | AP112: DALJIT MATTU
B113: 00055445380 | C113: ANAND | D113: ANAND BAKSHI | E113: BAKSHI | F113: CA | P113: 00122060925 | R113: ABDUL SAYED | X113: 00122060925 | Z113: ABDUL SAYED | AF113: 00373642059 | AH113: ASHWINI RECORDING COMPANY | AN113: CA3SS0925405 | AO113: VELLY BAN MITRA | AP113: PREET BRAR/MISS POOJA
B114: 00055445478 | C114: C | D114: C ARJUN | E114: ARJUN | F114: C | P114: 00122061040 | R114: ABDUL SAYEED | X114: 00122061040 | Z114: ABDUL SAYEED | AF114: 00373642549 | AH114: ASHWRATH CREATION | AN114: CA3SS1128306,INM231400389,INY181600918 | AO114: DIL | AP114: PRINCE SONKHLA
B115: 00055446083 | C115: BHIMSINGH-MEHMOOD PRODUCTIONS | D115: BHIMSINGH-MEHMOOD PRODUCTIONS | F115: E | P115: 00122061138 | R115: ABDUL WAHAB SAYYED HESHAM | X115: 00122061138 | Z115: ABDUL WAHAB SAYYED HESHAM | AF115: 00373642843 | AH115: ASIATIC ART PRODUCTIONS | AN115: CA3SS1128308,INM231400388 | AO115: AKH | AP115: PARAMJIT KAUR
B116: 00055446573 | C116: BHARAT | D116: BHARAT VYAS | E116: VYAS | F116: CA | P116: 00122061236 | R116: ABDULMUNEEB ABDUL HABEEB SHAIKH | X116: 00122061236 | Z116: ABDULMUNEEB ABDUL HABEEB SHAIKH | AF116: 00373643840 | AH116: ASLI MUSIC LLP | AN116: CA3SS1329503,INS180461501 | AO116: YAARI | AP116: GURSEWAK MANN
B117: 00055446867 | C117: RAHUL DEV | D117: RAHUL DEV BURMAN | E117: BURMAN | F117: C | P117: 00122061334 | R117: ABEER | X117: 00122061334 | Z117: ABEER | AF117: 00373644347 | AH117: ASP ENTERTAINMENT | AN117: CA5KR1566870,FRX871510985,INA791500828 | AO117: KAMLI | AP117: NAVYA JAITI
B118: 00055446867 | C118: RAHUL DEV | D118: R D BURMAN | E118: BURMAN | F118: C | P118: 00122061432 | R118: ABEL PETER RODRIGUES | X118: 00122061432 | Z118: ABEL PETER RODRIGUES | AF118: 00373644641 | AH118: AT AZAAD | AN118: CA5KR1571454 | AO118: THAR | AP118: VICKY VIRK
B119: 00055446965 | C119: BHAGATRAM | D119: BHAGATRAM DEVICHAND SHARMA | E119: DEVICHAND SHARMA | F119: C | P119: 00122061726 | R119: ABG | X119: 00122061726 | Z119: ABG | AF119: 00373646145 | AH119: AT AZAAD RECORDINGS PRIVATE LIMITED | AN119: CA5KR1579279 | AO119: IF YOU SEE | AP119: CHARAN
B120: 00055446965 | C120: BHAGATRAM | D120: HUSANLAL-BHAGATRAM | E120: DEVICHAND SHARMA | F120: C | P120: 00122061824 | R120: ABHAEY SINGH | X120: 00122061824 | Z120: ABHAEY SINGH | AF120: 00373647534 | AH120: ATIF MUSIC | AN120: CA5KR1579279 01 | AO120: TRANCE | AP120: CHARAN
B121: 00055447178 | C121: JAGMOHAN | D121: JAGMOHAN BAKSHI | E121: BAKSHI | F121: C | P121: 00122061922 | R121: ABHAS JOSHI | X121: 00122061922 | Z121: ABHAS JOSHI | AF121: 00373647632 | AH121: ATLANTIS DIGITAL | AN121: CA5KR1700321 | AO121: SHEESHA VECH VI AAWENGA | AP121: SATPAL SINGH DUGRI
B122: 00055447178 | C122: JAGMOHAN | D122: SAPAN JAGMOHAN | E122: BAKSHI | F122: C | P122: 00122062037 | R122: ABHAY | X122: 00122062037 | Z122: ABHAY | AF122: 00373647926 | AH122: AUDIO 7 | AN122: CA5KR1702961,INE181706538 | AO122: YAAR FROD | AP122: TIGER
B123: 00055447178 | C123: JAGMOHAN | D123: SAPAN-JAGMOHAN | E123: BAKSHI | F123: C | P123: 00122062135 | R123: ABHAY DUBEY | X123: 00122062135 | Z123: ABHAY DUBEY | AF123: 00373648237 | AH123: AUDIO CURRY | AN123: CA5KR1704913,INE181704721 | AO123: TU JAARI HAI | AP123: RISH ,MOIT
B124: 00055447178 | C124: JAGMOHAN | D124: SAPAN-JAGMOHAN | E124: BAKSHI | F124: C | P124: 00122062233 | R124: ABHAY GUPTA | X124: 00122062233 | Z124: ABHAY GUPTA | AF124: 00373648923 | AH124: AUDIO TOUCH MUSIC CORP | AN124: CA5KR1710908,FR10S1987636,INA501600257,TCADJ1737170 | AO124: LE CHAKK MAIN AA GEYA | AP124: PARMISH VERMA
B125: 00055447276 | C125: RAJ KAMAL | D125: RAJ KAMAL BHARATI | E125: BHARATI | F125: C | P125: 00122062331 | R125: ABHAY KUMAR | X125: 00122062331 | Z125: ABHAY KUMAR | AF125: 00373650061 | AH125: AUDIO VISION ENTERTAINMENT | AN125: CA5KR1715162,INE181707861 | AO125: YEH ZINDAGI | AP125: RAHAT FATEH ALI KHAN ,SAHIRALIBAGGA
B126: 00055447276 | C126: RAJ KAMAL | D126: RAJ KAMAL | E126: BHARATI | F126: C | P126: 00122062429 | R126: ABHAY SAMRAT | X126: 00122062429 | Z126: ABHAY SAMRAT | AF126: 00373651254 | AH126: AUDIO WING MUSIC | AN126: CA5KR1803004,INM241814363 | AO126: WEAKNESS TU JATT DI | AP126: BIPPY SINGH
B127: 00055447374 | C127: ROBIN | D127: ROBIN BANERJEE | E127: BANERJEE | F127: C | P127: 00122062527 | R127: ABHAYADEV | X127: 00122062527 | Z127: ABHAYADEV | AF127: 00373651352 | AH127: AUDIOLAB MEDIA CORPORATION | AN127: CAMF60600010,INH100171260,INK321700136,INS181102424 | AO127: JATTI | AP127: SUKHDEEP GREWAL
B128: 00055447766 | C128: CHITRAGUPTA | D128: CHITRAGUPTA | F128: C | P128: 00122062625 | R128: ABHAYKUMAR KULKARNI | X128: 00122062625 | Z128: ABHAYKUMAR KULKARNI | AF128: 00373651548 | AH128: AUDIOTRACS MUSIC COMPANY | AN128: CAMF60600018,INS189524494 | AO128: AAJA DOVEN NACHIYE | AP128: PARMINDER SANDHU ,SARDOOLSIKANDER ,HARBHAJANMANN ,KAMALJITNEERU ,DEBIMAKHSOOSPURI ,SURINDERJIT ,GURPALMATIYAR
B129: 00055448763 | C129: DATTA | D129: DATTA DAVJEKAR | E129: DAVJEKAR | F129: C | P129: 00122062919 | R129: ABHAYKUMAR N GUPTA | X129: 00122062919 | Z129: ABHAYKUMAR N GUPTA | AF129: 00373651842 | AH129: AURO MEDIA ENTERPRISES | AN129: CAMF60600077,INS181102426 | AO129: BOLIYAN | AP129: SUKHDEEP GREWAL
B130: 00055449074 | C130: PREM | D130: PREM DHAWAN | E130: DHAWAN | F130: CA | P130: 00122063034 | R130: ABHAYKUMAR NABHIRAJ PATIL | X130: 00122063034 | Z130: ABHAYKUMAR NABHIRAJ PATIL | AF130: 00373652251 | AH130: AURUMUSICA LLP | AN130: CAMF60600123,INM701200186 | AO130: KIKKAR TE | AP130: LAKHWINDER WADALLI
B131: 00055449270 | C131: N | D131: N DUTTA | E131: DUTTA | F131: C | P131: 00122063132 | R131: ABHAYKUMAR VITHALRAO KULKARNI | X131: 00122063132 | Z131: ABHAYKUMAR VITHALRAO KULKARNI | AF131: 00373652349 | AH131: AVENIR TECHNOLOGY | AN131: CAMF60600126,INM701200190 | AO131: TERA YAAR NI | AP131: LAKHWINDER WADALLI
B132: 00055757943 | C132: LALJEE | D132: LALJEE PANDEY | E132: PANDEY | F132: CA | P132: 00122063230 | R132: ABHAYVEER HANDA | X132: 00122063230 | Z132: ABHAYVEER HANDA | AF132: 00373652447 | AH132: AVI MUSIC AND MOVIE ENTERTAINMENT | AN132: CAMF60600140,ING120900177 | AO132: HEER | AP132: BALKAR SIDHU
B133: 00055757943 | C133: LALJEE | D133: ANJAAN | E133: PANDEY | F133: CA | P133: 00122063328 | R133: ABHEE | X133: 00122063328 | Z133: ABHEE | AF133: 00373654735 | AH133: AVM PRODUCTIONS | AN133: CAMF60600147,INS181101682 | AO133: JHANJHAR | AP133: BALKAR ANKHILA ,MANJINDER GULSHAN
B134: 00056183379 | C134: FARID | D134: FARID SABRI | E134: SABRI | F134: C | P134: 00122063426 | R134: ABHENDRA KUMAR UPADHYAY | X134: 00122063426 | Z134: ABHENDRA KUMAR UPADHYAY | AF134: 00373654833 | AH134: AYNGARAN INTERNATIONAL MEDIA PVT.LTD. | AN134: CAMF60600281,INS180242788 | AO134: DIL SAADE NAAL | AP134: NACHHATAR GILL
B135: 00057450967 | C135: HEMANTA KUMAR | D135: HEMANTA KUMAR MUKERJI | E135: MUKERJI | F135: C | P135: 00122063524 | R135: ABHIGYAN JHA | X135: 00122063524 | Z135: ABHIGYAN JHA | AF135: 00373654931 | AH135: AZAD CREATION | AN135: CAMF60600298,INH100290930,INS180600371,INT100000627 | AO135: MIRZA | AP135: SURINDER SHINDA ,SUDESH KUMARI
B136: 00057450967 | C136: HEMANTA KUMAR | D136: HEMANT KUMAR | E136: MUKERJI | F136: C | P136: 00122063622 | R136: ABHIGYAN RAMESH JHA | X136: 00122063622 | Z136: ABHIGYAN RAMESH JHA | AF136: 00373655046 | AH136: AZADI MEDIA HOLDINGS LLP | AN136: CAMF60600378,IN-G12-09-01098,ING120901098 | AO136: DIDAR MAHI DA | AP136: SALEEM
B137: 00057451082 | C137: ROBIN | D137: ROBIN CHATTERJI | E137: CHATTERJI | F137: C | P137: 00122063720 | R137: ABHIJAY KULDEEP NEGI | X137: 00122063720 | Z137: ABHIJAY KULDEEP NEGI | AF137: 00373655144 | AH137: B D M FILMS | AN137: CAMF60600488,INF111600206,INS180802930 | AO137: KACHERIAN CH MELE LAGDE | AP137: KULWINDER DHILLON
B138: 00057451082 | C138: ROBIN | D138: ROBIN CHATTERJEE | E138: CHATTERJI | F138: C | P138: 00122063818 | R138: ABHIJEET AROON | X138: 00122063818 | Z138: ABHIJEET AROON | AF138: 00373655242 | AH138: B LIVE MUSICS AND ENTERTAINMENT PVT LTD | AN138: CAMF60600502,ING120901047 | AO138: SANU ISHQ HO GAYA | AP138: AMRINDER GILL
B139: 00058998406 | C139: V | D139: V BALSARA | E139: BALSARA | F139: C | P139: 00122063916 | R139: ABHIJEET ASHOK HEGDEPATIL | X139: 00122063916 | Z139: ABHIJEET ASHOK HEGDEPATIL | AF139: 00373655340 | AH139: B M B MUSIC MAGNETICS LIMITED | AN139: CAMF60600511,IN-G12-09-01031 | AO139: NACHANA TAN AUNDA | AP139: HARBANS SAHOTA
B140: 00058998602 | C140: PABITRA NARAYAN | D140: PABITRA NARAYAN CHATTERJI | E140: CHATTERJI | F140: C | P140: 00122064031 | R140: ABHIJEET BHATTACHARJEE | X140: 00122064031 | Z140: ABHIJEET BHATTACHARJEE | AF140: 00373655438 | AH140: B R FILMS | AN140: CAMF60600542,IN12F1000123,INS188821301 | AO140: BOLIYAN | AP140: AMAR NOORI
B141: 00058998700 | C141: SALIL | D141: SALIL CHOWDHURY | E141: CHOWDHURY | F141: C | P141: 00122064129 | R141: ABHIJEET GADWE | X141: 00122064129 | Z141: ABHIJEET GADWE | AF141: 00373655536 | AH141: B R PRODUCTIONS | AN141: CAMF60600705,INT100600210 | AO141: MAIN VAKH ROVAN | AP141: DURGA RANGILA
B142: 00058999109 | C142: HRIDYANATH | D142: HRIDYANATH MANGESHKAR | E142: MANGESHKAR | F142: C | P142: 00122064521 | R142: ABHIJEET HEGDEPATIL | X142: 00122064521 | Z142: ABHIJEET HEGDEPATIL | AF142: 00373655634 | AH142: B R TV | AN142: CAMF60600711,INT100600207 | AO142: DHOKHE BAAZ KEHANGE | AP142: DURGA RANGILA
B143: 00058999403 | C143: KIDAR | D143: KIDAR SHARMA | E143: SHARMA | F143: CA | P143: 00122064619 | R143: ABHIJEET KK KAKES HEGDEPATIL | X143: 00122064619 | Z143: ABHIJEET KK KAKES HEGDEPATIL | AF143: 00373655732 | AH143: B SUBHASH MOVIE UNIT | AN143: CAMF60600712,INT100600213 | AO143: TERI GAL HOR | AP143: DURGA RANGILA
B144: 00062137894 | C144: T V | D144: T V RAJU | E144: RAJU | F144: C | P144: 00122064717 | R144: ABHIJEET KUMAR | X144: 00122064717 | Z144: ABHIJEET KUMAR | AF144: 00373670641 | AH144: B7 MOVIE MUSIC | AN144: CAMF60600928,INT100600281 | AO144: RAKH SAMBH KE | AP144: JAZZY B
B145: 00062141513 | C145: SALUR HANUMANTHA | D145: SALUR HANUMANTHA RAO | E145: RAO | F145: C | P145: 00122064815 | R145: ABHIJEET KUMAR (AMAN SHLOK) | X145: 00122064815 | Z145: ABHIJEET KUMAR (AMAN SHLOK) | AF145: 00373671344 | AH145: BADAL FILMS AND MUSIC ENTERTAINMENT | AN145: CAMF60601184,IN-G12-09-00418,ING120900418 | AO145: TERE VARGA | AP145: AMRINDER GILL
B146: 00062141611 | C146: PENDYALA NAGESWARA | D146: PENDYALA NAGESWARA RAO | E146: RAO | F146: C | P146: 00122064913 | R146: ABHIJEET KUMIR | X146: 00122064913 | Z146: ABHIJEET KUMIR | AF146: 00373675038 | AH146: BAHAR PICTURES | AN146: CAMF60601271,INT100600314 | AO146: MIRZA | AP146: JAZZY B
B147: 00062141709 | C147: M RANGA | D147: M RANGA RAO | E147: RAO | F147: CA | P147: 00122065028 | R147: ABHIJEET MISHRA | X147: 00122065028 | Z147: ABHIJEET MISHRA | AF147: 00373675822 | AH147: BALAJI FILMS LTD. | AN147: CAMF60601273,INT100600312 | AO147: HAI HAI JAWANI NI | AP147: JAZZY B
B148: 00062142020 | C148: POOVAI | D148: POOVAI SENGUTTUVAN | E148: SENGUTTUVAN | F148: CA | P148: 00122065126 | R148: ABHIJEET NARVEKAR | X148: 00122065126 | Z148: ABHIJEET NARVEKAR | AF148: 00373677032 | AH148: BALAJI SOLITAIRES PVT LTD | AN148: CAMF60601338,INM701200060,ISRCINM701200060 | AO148: KARTAAR SIAAN | AP148: RAVINDER GREWAL
B149: 00062142118 | C149: R K | D149: R K SEKAR | E149: SEKAR | F149: C | P149: 00122065224 | R149: ABHIJEET NIRMAL GHOSHAL | X149: 00122065224 | Z149: ABHIJEET NIRMAL GHOSHAL | AF149: 00373677522 | AH149: BALLE BALLE TUNES | AN149: CAMF60601365,INM701200054,ISRCINM701200054 | AO149: SHER PUNJAB DA | AP149: ARIF LOHAR
B150: 00062142216 | C150: T K | D150: T K PUKAZHENTHI | E150: PUKAZHENTHI | F150: C | P150: 00122065322 | R150: ABHIJEET PRAKASH NARVEKAR | X150: 00122065322 | Z150: ABHIJEET PRAKASH NARVEKAR | AF150: 00373677816 | AH150: BAND 18 MUSIC LLP | AN150: CAMF60601393,INS180606534 | AO150: MUNDRI | AP150: HARJIT HARMAN
B151: 00062142314 | C151: PENDYALA | D151: PENDYALA SRINIVASAN | E151: SRINIVASAN | F151: C | P151: 00122065420 | R151: ABHIJIT A JOSHI | X151: 00122065420 | Z151: ABHIJIT A JOSHI | AF151: 00373678617 | AH151: BANDEDGE TALENT AGENCY PRIVATE LIMITED | AN151: CAMF60601394,INS180606535 | AO151: ROG | AP151: HARJIT HARMAN
B152: 00062142412 | C152: M B | D152: M B SRINIVASAN | E152: SRINIVASAN | F152: C | P152: 00122065518 | R152: ABHIJIT BANERJEE | X152: 00122065518 | Z152: ABHIJIT BANERJEE | AF152: 00373679222 | AH152: BANGLA ROCK | AN152: CAMF60601395,INS180606536 | AO152: PAKHI | AP152: HARJIT HARMAN
B153: 00062142510 | C153: CHI UDAYA | D153: CHI UDAYA SHANKAR | E153: SHANKAR | F153: A | P153: 00122065616 | R153: ABHIJIT GANESH GHOSHAL | X153: 00122065616 | Z153: ABHIJIT GANESH GHOSHAL | AF153: 00373680147 | AH153: BASANT BAHAR ENTERTAINMENT | AN153: CAMF60601396,INS180606537 | AO153: JOGI | AP153: HARJIT HARMAN
B154: 00062142510 | C154: CHI UDAYA | D154: UDAYA SHANKER | E154: SHANKAR | F154: A | P154: 00122065714 | R154: ABHIJIT GHOSH | X154: 00122065714 | Z154: ABHIJIT GHOSH | AF154: 00373680539 | AH154: BASE INDUSTRIES GROUP | AN154: CAMF60601399,INS180606540 | AO154: SAJJNA | AP154: HARJIT HARMAN
B155: 00062142706 | C155: GHANTASALA VENKATESHWARA | D155: GHANTASALA VENKATESHWARA RAO | E155: RAO | F155: CA | P155: 00122065812 | R155: ABHIJIT GHOSHAL | X155: 00122065812 | Z155: ABHIJIT GHOSHAL | AF155: 00373680637 | AH155: BE PUNJABI RECORDS | AN155: CAMF60601400,INS180606541 | AO155: CHANDOL | AP155: HARJIT HARMAN
B156: 00062143017 | C156: S RAJESWARA | D156: S RAJESWARA RAO | E156: RAO | F156: C | P156: 00122065910 | R156: ABHIJIT HEGDEPATIL | X156: 00122065910 | Z156: ABHIJIT HEGDEPATIL | AF156: 00373681928 | AH156: BEAT BUCK IT MUSIC PVT LTD | AN156: CAMF60601401,INS180606542 | AO156: YADAAN | AP156: HARJIT HARMAN
B157: 00062143311 | C157: T CHALAPATHY | D157: T CHALAPATHY RAO | E157: RAO | F157: C | P157: 00122066025 | R157: ABHIJIT KHANDEKAR | X157: 00122066025 | Z157: ABHIJIT KHANDEKAR | AF157: 00383301576 | AH157: BEETHOVEN RECORDS | AN157: CAMF60601430,INM231401499 | AO157: AKH | AP157: DEEPAK DHILLON
B158: 00062143507 | C158: C NARAYAN | D158: C NARAYAN REDDY | E158: REDDY | F158: CA | P158: 00122066123 | R158: ABHIJIT MAJUMDAR | X158: 00122066123 | Z158: ABHIJIT MAJUMDAR | AF158: 00383304077 | AH158: BEING U | AN158: CAMF60601431 | AO158: MAA | AP158: DEBOJIT SAHA
B159: 00062144210 | C159: KANNADHASAN | D159: KANNADHASAN | F159: CA | P159: 00122066221 | R159: ABHIJIT NITYANANDA GHOSH | X159: 00122066221 | Z159: ABHIJIT NITYANANDA GHOSH | AF159: 00383304371 | AH159: BEING U MUSIC | AN159: CAMF60700038,INM701200084,ISRCINM701200084 | AO159: SAANWAL RANGIYE | AP159: LAKHWINDER WADALI
B160: 00062144602 | C160: S M SUBBIAH | D160: S M SUBBIAH NAIDU | E160: NAIDU | F160: C | P160: 00122066417 | R160: ABHIJIT SARKAR | X160: 00122066417 | Z160: ABHIJIT SARKAR | AF160: 00383306071 | AH160: BEINGU STUDIOS PRIVATE LIMITED | AN160: CAMF60700046,CAMF60700054,INT100700067 | AO160: KAUN NACHDI - URBANOLOGY MIX | AP160: JAZZY B
B161: 00062145798 | C161: T G | D161: T G LINGAPPA | E161: LINGAPPA | F161: C | P161: 00122066515 | R161: ABHIJIT SHARAD VAGHANI | X161: 00122066515 | Z161: ABHIJIT SHARAD VAGHANI | AF161: 00383309944 | AH161: BENCHMARK ENTERTAINMENT PRIVATE LIMITED | AN161: CAMF60700049,INT100700068 | AO161: KAUN NACHDI - STREETOLOGY MIX | AP161: JAZZY B
B162: 00062145896 | C162: K V | D162: K V MAHADEVAN | E162: MAHADEVAN | F162: C | P162: 00122066711 | R162: ABHIJIT SHRINIVAS KHANDEKAR | X162: 00122066711 | Z162: ABHIJIT SHRINIVAS KHANDEKAR | AF162: 00383311572 | AH162: BENGALI REMIX MUSIC | AN162: CAMF60701506,INM701200016 | AO162: KOKA MARE | AP162: SUKHDEV SUKHA
B163: 00062146599 | C163: R N | D163: R N JAYAGOPAL | E163: JAYAGOPAL | F163: CA | P163: 00122066907 | R163: ABHIJIT TOPU SARKAR | X163: 00122066907 | Z163: ABHIJIT TOPU SARKAR | AF163: 00383311866 | AH163: BENNETT COLEMAN AND CO LTD | AN163: CAMF60701512,INM701200013 | AO163: DARJI VI LUTEYA | AP163: SUKHDEV SUKHA
B164: 00062147596 | C164: G | D164: G DEVARAJAN | E164: DEVARAJAN | F164: C | P164: 00122067022 | R164: ABHIJIT VAGHANI | X164: 00122067022 | Z164: ABHIJIT VAGHANI | AF164: 00383311964 | AH164: BEYOND MUSIC IND | AN164: CAMF60701513,INM701200011 | AO164: BHUL BETHA | AP164: SUKHDEV SUKHA
B165: 00062147694 | C165: A A | D165: A A RAJ | E165: RAJ | F165: C | P165: 00122067120 | R165: ABHIJITH BOSE | X165: 00122067120 | Z165: ABHIJITH BOSE | AF165: 00383312177 | AH165: BHAGYA LAXMI CHITRA MANDIR | AN165: CAMF60701526,INT100600279 | AO165: NACHNA | AP165: JAZZY B
B166: 00062148691 | C166: K C | D166: K C DASARATHI | E166: DASARATHI | F166: C | P166: 00122067218 | R166: ABHIJITH RAMASWAMI | X166: 00122067218 | Z166: ABHIJITH RAMASWAMI | AF166: 00383312275 | AH166: BHAV DEEP FILMS | AN166: CAN110601941 | AO166: MEHBOOBA | AP166: SWAMI
B167: 00062149198 | C167: VIJAYA | D167: VIJAYA BHASKAR | E167: BHASKAR | F167: C | P167: 00122067316 | R167: ABHIK GHOSH | X167: 00122067316 | Z167: ABHIK GHOSH | AF167: 00383317652 | AH167: BHAVNA RECORDS AND CASSETTES | AN167: CAN110601944 | AO167: BIG BEAT THUMBI | AP167: SWAMI
B168: 00062149296 | C168: V | D168: V DAKSHINAMURTY | E168: DAKSHINAMURTY | F168: CA | P168: 00122067512 | R168: ABHILASH | X168: 00122067512 | Z168: ABHILASH | AF168: 00383317750 | AH168: BHIMSINGH-MEHMOOD PRODUCTIONS | AN168: CAN110601946 | AO168: DISCIPLES | AP168: SWAMI
B169: 00062154699 | C169: C H | D169: C H SATYAM | E169: SATYAM | F169: C | P169: 00122067610 | R169: ABHILASH GUPTA | X169: 00122067610 | Z169: ABHILASH GUPTA | AF169: 00383317848 | AH169: BHIRABI SOUNDS | AN169: CAN110601947 | AO169: HAI MEH MARJAHN | AP169: SWAMI
B170: 00062156399 | C170: M S | D170: M S VISHWANATHAN | E170: VISHWANATHAN | F170: C | P170: 00165431087 | R170: ABHILASHA A JHINGRAN | X170: 00165431087 | Z170: ABHILASHA A JHINGRAN | AF170: 00383317946 | AH170: BIG BANG RECORDS PRIVATE LIMITED | AN170: CAN110601951 | AO170: DESIROCK | AP170: SWAMI
B171: 00062156399 | C171: M S | D171: M S VISHWANATHAN-T K RAMAMURTHY | E171: VISHWANATHAN | F171: C | P171: 00169164155 | R171: ABHILESH GANGADHARAN | X171: 00169164155 | Z171: ABHILESH GANGADHARAN | AF171: 00383318061 | AH171: BIG DREAM CREATIONS | AN171: CAN110601953 | AO171: DONT HOLD BACK | AP171: SWAMI
B172: 00062156399 | C172: M S | D172: T K RAMAMURTHY | E172: VISHWANATHAN | F172: C | P172: 00203540124 | R172: ABHILESH GOLDIE | X172: 00203540124 | Z172: ABHILESH GOLDIE | AF172: 00383318159 | AH172: BIHAAN MUSIC | AN172: CAN110601954 | AO172: TURN IT UP | AP172: SWAMI
B173: 00062160214 | C173: G K | D173: G K VENKATESH | E173: VENKATESH | F173: C | P173: 00238091372 | R173: ABHIMANYU NAGAR | X173: 00238091372 | Z173: ABHIMANYU NAGAR | AF173: 00383320179 | AH173: BIJIBILLA RAMARAO | AN173: CAN110601962 | AO173: DESIROCK SHIVA REMIX EDIT | AP173: SWAMI
B174: 00062161211 | C174: P | D174: P BHASKARAN | E174: BHASKARAN | F174: CA | P174: 00253574852 | R174: ABHINANDA SARKAR | X174: 00253574852 | Z174: ABHINANDA SARKAR | AF174: 00383320277 | AH174: BLACK AND WHITE RECORDS | AN174: CAWK01507002 | AO174: ITS AB | AP174: ABHISHEK BACHCHAN
B175: 00062161309 | C175: T | D175: T UPENDRAKUMAR | E175: UPENDRAKUMAR | F175: C | P175: 00254142394 | R175: ABHINAV KAUSHIK | X175: 00254142394 | Z175: ABHINAV KAUSHIK | AF175: 00383320375 | AH175: BLCMUSIC4U | AN175: CAWK01507002 | AO175: UNTILL THE SUN COMES UP | AP175: RAGHAV MATHUR
B176: 00062161603 | C176: P SREEKUMARAN | D176: P SREEKUMARAN THAMPI | E176: THAMPI | F176: CA | P176: 00254143685 | R176: ABHINAV KHAIRNAR | X176: 00254143685 | Z176: ABHINAV KHAIRNAR | AF176: 00383325752 | AH176: BLOCK BUSTER MOVIE ENTERTAINERS | AN176: CAWK01507002 | AO176: EVERYBODY | AP176: NELLY
B177: 00062162995 | C177: VAALEE | D177: VAALEE | F177: CA | P177: 00254143979 | R177: ABHINAV KHANNA | X177: 00254143979 | Z177: ABHINAV KHANNA | AF177: 00383330175 | AH177: BLUE FROG MEDIA PVT LTD | AN177: CDB 135606 | AO177: TUMI TO JANO NA PRIYO | AP177: DR. NITA SAHA KUTHIAL
B178: 00062946755 | C178: NAGENDRA | D178: NAGENDRA | F178: C | P178: 00254144094 | R178: ABHINAV KUMAR UPADHYAY | X178: 00254144094 | Z178: ABHINAV KUMAR UPADHYAY | AF178: 00383330273 | AH178: BLUE PRODUCTIONS | AN178: CDB100301 | AO178: AMAY EKTU JAYGA DAO MAGO | AP178: MANNA DEY
B179: 00062946755 | C179: NAGENDRA | D179: RAJAN NAGENDRA | F179: C | P179: 00254144584 | R179: ABHINAV SHARMA | X179: 00254144584 | Z179: ABHINAV SHARMA | AF179: 00383330567 | AH179: BMG CRESCENDO (INDIA) PVT LTD | AN179: CDB100303,INM240710033 | AO179: AMAR JIVAN TARI | AP179: MANNA DEY
B180: 00062946755 | C180: NAGENDRA | D180: RAJAN-NAGENDRA | F180: C | P180: 00254144878 | R180: ABHIRAJ | X180: 00254144878 | Z180: ABHIRAJ | AF180: 00383332953 | AH180: BODHI SILENT SCAPE | AN180: CDB100307,INM240710037,INUMM1400300 | AO180: JAKHAN EMON HOY | AP180: MANNA DEY
B181: 00062946755 | C181: NAGENDRA | D181: RAJAN-NAGENDRA | F181: C | P181: 00254145875 | R181: ABHIRAJ JHA | X181: 00254145875 | Z181: ABHIRAJ JHA | AF181: 00383334555 | AH181: BOHRA MUSIC | AN181: CDB100404,INM240710044 | AO181: RAMKRISHNA NAMER JOWAR ELO | AP181: MAHESH RANJAN SOME
B182: 00062946951 | C182: R | D182: R RAJAN | E182: RAJAN | F182: C | P182: 00254146284 | R182: ABHIRUCHI CHAND | X182: 00254146284 | Z182: ABHIRUCHI CHAND | AF182: 00383335356 | AH182: BOLLYWOOD MANGOES PRODUCTIONS | AN182: CDB100406 | AO182: PREMO BHORE MONRE GAHO | AP182: MAHESH RANJAN SOME
B183: 00062946951 | C183: R | D183: RAJAN NAGENDRA | E183: RAJAN | F183: C | P183: 00254146970 | R183: ABHISHAK KHERA | X183: 00254146970 | Z183: ABHISHAK KHERA | AF183: 00383335454 | AH183: BOMBAY TALKIES MUSIC | AN183: CDB100412 | AO183: KE TUMI ELE EBAR | AP183: MAHESH RANJAN SOME
B184: 00062946951 | C184: R | D184: RAJAN-NAGENDRA | E184: RAJAN | F184: C | P184: 00254147869 | R184: ABHISHEK ARORA | X184: 00254147869 | Z184: ABHISHEK ARORA | AF184: 00386307736 | AH184: BOO FILMZ | AN184: CDB100413,INM240010134,INM240810044,INM248948382 | AO184: KATHURE TUI DUR BONE JA | AP184: MAHESH RANJAN SOME
B185: 00062946951 | C185: R | D185: RAJAN-NAGENDRA | E185: RAJAN | F185: C | P185: 00254148082 | R185: ABHISHEK AWANI BHUSHAN | X185: 00254148082 | Z185: ABHISHEK AWANI BHUSHAN | AF185: 00395435920 | AH185: BOOBNA ENTERTAINMENT PVT. LTD. | AN185: CDB100701 | AO185: ANJALI LAHO MOR SANGEETE | AP185: FEROZA BEGUM
B186: 00063078090 | C186: B S | D186: B S SASTRI | E186: SASTRI | F186: CA | P186: 00254148180 | R186: ABHISHEK BRIJMOHAN VERMA | X186: 00254148180 | Z186: ABHISHEK BRIJMOHAN VERMA | AF186: 00395436035 | AH186: BOOBNA MUSIC | AN186: CDB100702 | AO186: AAMI PURAB DESHER PURANARI | AP186: FEROZA BEGUM
B187: 00063078090 | C187: B S | D187: ARUDRA | E187: SASTRI | F187: CA | P187: 00254148474 | R187: ABHISHEK CHATTERJEE | X187: 00254148474 | Z187: ABHISHEK CHATTERJEE | AF187: 00395436133 | AH187: BRAND B | AN187: CDB100707 | AO187: ARO KATODIN BAKI | AP187: FEROZA BEGUM
B188: 00063078286 | C188: SHYAM | D188: SHYAM | F188: C | P188: 00254148670 | R188: ABHISHEK CHOUDHARY | X188: 00254148670 | Z188: ABHISHEK CHOUDHARY | AF188: 00395436231 | AH188: BRAND MAKERS | AN188: CDB101613,INM240210164 | AO188: ADYAMAYER ADYASRUTI | AP188: AMRIK SINGH ARORA
B189: 00063078286 | C189: SHYAM | D189: SHYAM (IM) | F189: C | P189: 00254149667 | R189: ABHISHEK DEY | X189: 00254149667 | Z189: ABHISHEK DEY | AF189: 00395436525 | AH189: BRAR COMBINE | AN189: CDB101902,INM240210192 | AO189: BRINDABANE RAISHYAMER | AP189: MAHESH RANJAN SOME
B190: 00063078286 | C190: SHYAM | D190: JOSEPH SAMUEL | F190: C | P190: 00254150100 | R190: ABHISHEK DHUSIA | X190: 00254150100 | Z190: ABHISHEK DHUSIA | AF190: 00395437718 | AH190: BRAR PRODUCTIONS | AN190: CDB101904,INM248947233 | AO190: ORE NIL JAMUNAR JAL | AP190: MAHESH RANJAN SOME
B191: 00063078286 | C191: SHYAM | D191: SAMUEL JOSEPH | F191: C | P191: 00254151099 | R191: ABHISHEK GIRJA PANDEY | X191: 00254151099 | Z191: ABHISHEK GIRJA PANDEY | AF191: 00395438323 | AH191: BRAVO | AN191: CDB101912,INM2402101912 | AO191: DIN PHURALO | AP191: MAHESH RANJAN SOME
B192: 00122060435 | C192: AJAY | D192: AJAY SWAMI | E192: SWAMI | F192: C | P192: 00254151197 | R192: ABHISHEK KUMAR | X192: 00254151197 | Z192: ABHISHEK KUMAR | AF192: 00395438421 | AH192: BRIJWANI CASSETTES | AN192: CDB102003,INM240210203,INM248743553 | AO192: GHUMAIYO NA AR BEHULA | AP192: GOSTO GOPAL DAS
B193: 00122060533 | C193: ALI SARDAR | D193: ALI SARDAR JAFRI | E193: JAFRI | F193: CA | P193: 00254151491 | R193: ABHISHEK MAJUMDER | X193: 00254151491 | Z193: ABHISHEK MAJUMDER | AF193: 00395438911 | AH193: BSB FILMS | AN193: CDB102019,INM2402102019 | AO193: TERE NA TERE NANA | AP193: SWAPNA CHAKRABARTY
B194: 00122060631 | C194: ASAD | D194: ASAD BHOPALI | E194: BHOPALI | F194: CA | P194: 00254151589 | R194: ABHISHEK MISHRA | X194: 00254151589 | Z194: ABHISHEK MISHRA | AF194: 00395440735 | AH194: BUGGA RECORDS | AN194: CDB103201,INM240310321,INM248743561 | AO194: AMAR BANDHU RAILO KON DESHE | AP194: GOSTO GOPAL DAS
B195: 00122060729 | C195: AVINASH ANDARAY | D195: AVINASH ANDARAY VYAS | E195: VYAS | F195: CA | P195: 00254151687 | R195: ABHISHEK NAILWAL | X195: 00254151687 | Z195: ABHISHEK NAILWAL | AF195: 00395440833 | AH195: BULL18 | AN195: CDB103214 | AO195: KE JAO TUMI | AP195: GOSTO GOPAL DAS
B196: 00122060729 | C196: AVINASH ANDARAY | D196: VYAS A A | E196: VYAS | F196: CA | P196: 00254153093 | R196: ABHISHEK NALINI MISHRA | X196: 00254153093 | Z196: ABHISHEK NALINI MISHRA | AF196: 00395440931 | AH196: BUNTY BAINS PRODUCTIONS | AN196: CDB103216,INM240410327,INM2493497713 | AO196: KATHA DIYA KATHA RAKHLA NA | AP196: GOSTO GOPAL DAS
B197: 00122060729 | C197: AVINASH ANDARAY | D197: AVINASH VYAS | E197: VYAS | F197: CA | P197: 00254153877 | R197: ABHISHEK PANDEY | X197: 00254153877 | Z197: ABHISHEK PANDEY | AF197: 00395441046 | AH197: C C C CREATIONS | AN197: CDB103407 | AO197: MANUSH KULE JANMO NILE | AP197: HEMANTA MUKHOPADHYA
B198: 00122060827 | C198: AZIZ | D198: AZIZ QAISI | E198: QAISI | F198: CA | P198: 00254154482 | R198: ABHISHEK PRADEEP SHINDOLKAR | X198: 00254154482 | Z198: ABHISHEK PRADEEP SHINDOLKAR | AF198: 00395441144 | AH198: C J REDDY ENTERPRISES INDIA PVT LTD | AN198: CDB103411 | AO198: TUMI KEMONTI HABE | AP198: HEMANTA MUKHOPADHYA
B199: 00122060925 | C199: B | D199: B GOPALAM | E199: GOPALAM | F199: CA | P199: 00254155675 | R199: ABHISHEK RAY | X199: 00254155675 | Z199: ABHISHEK RAY | AF199: 00395441242 | AH199: CANTHAL MUSIC | AN199: CDB104701 | AO199: EK JE CHILO DUORANI FEMALE | AP199: ASHA BHONSLE
B200: 00122061040 | C200: B | D200: B SHANKAR | E200: SHANKAR | F200: C | P200: 00254155969 | R200: ABHISHEK SANJAY PANDEY | X200: 00254155969 | Z200: ABHISHEK SANJAY PANDEY | AF200: 00395441340 | AH200: CANVAS TALENT PRIVATE LIMITED | AN200: CDB105112 | AO200: BASHOBO BHALO RAKHBO DHORE DUET | AP200: AMIT KUMAR ,SHAKTI THAKUR ,KAVITAKRISHNAMURTHY ,HAYMANTISHUKLA
... 2050 more rows
